Workbook

Sheet Anleitung
A1: V_61
B2: JM im Folgejahr anpassen
A3: 1 | B3: alte JM öffnen und unter neuem Jahr abspeichern (F12), Jahreszahl im Blatt ändert Automatisch
A4: 2 | B4: An Blattnamen "Anleitung" und "Eiken" nichts ändern, neue Tabellen können hinzugefügt werden, aber sollten nicht.
A5: 3 | B5: In den Gelben Zellen Neue Schützen-Namen eingeben, mit einem Leerschlag anfangen,
A6: 4 | B6: Auf "1. Anlässe eingeben" drücken; alle 19 Schiessanlässe gehen auf. // Gleichzeitig werden die Schützen-Namen Alphabetisch sortiert
A7: 5 | B7: Anlässe über dem % Zeichen eingegeben, max. Punktzahlen müssen jetzt eingegeben oder Kontr. werden.
A8: 6 | B8: EWS für Standard und Ordonanz als sep. Stich eingeben, (150+200Pt.)
A9: 7 | B9: Auf "Resultate löschen" löscht alle Resultate ohne Rückfrage
A10: 8 | B10: Auf "Waffen löschen" löscht alle Waffen ohne Rückfrage
A11: 9 | B11: Dann auf Feld "2.Anzahl Schiessanlässe für Anzeige", richtige Nummer drücken, ( zB. 13 )
A12: 10 | B12: Auf "Anzahl zählende Schiessen" richtige Zahl drücken, wird auch unten rechts der Tabelle angezeigt
A13: 11 | B13: Alle Punkte und Gewehrart ( 1 - 4 ) eingeben, FS+OP keine Standardgewehre
A14: 12 | B14: Die Rangreihenfolge wird laufend angezeigt, und kann mit "Sortiert unter dem Jahr" sortiert werden //Ctrl+s
A15: 13 | B15: Wenn ende Jahr alle eingegeben sind, auf "Sortiert/Druckt Ende Jahr" drücken, Sortiert Schreibt Ränge auch nach links und druckt Blatt aus
A16: 14 | B16: Speichern
B18: ! sonst Tel. oder SMS 079 737'51'65 an mich :-)
A38: 12 | B38: Es springt auf das Blatt "Auswertung" es werden nur die Prozente kopiert, warten bis Cursor auf B34 steht
A39: 13 | B39: Auf "4. Anzahl zählende Schiessen", richtige Zahl drücken
B40: 5. Bei 12 Anlässen Spalte T bis Y markieren und ausblenden, rechte Maustaste drücken, auf Ausblenden, dann
A41: 14 | B41: In Kolonne AA Zellen mit #ZAHL! Löschen, diese Schützen mit #Zahl! haben zu wenige Schiessen besucht,
B42: erst dann erscheint die Rangreihenfolge !
B43: Auf blauen Knopf "6. Sortiert Resultate" drücken
B44: ( Von B34 an den zu druckenden Bereich markieren, auf "Druckbereich festlegen" gehen,
B45: auf Seitenansicht, wenn io ausdrücken, ist normal voreingestellt ! sonst Tel. oder SMS 079 737'51'65 an mich )
B46: Speichern

Sheet Eiken
B1: V_61 | BO1: Schiessen zählen: | BP1: 9 | BY1: =CB1+CC1 ->  | CB1: =BS3-CC1 ->  | CC1: =COUNTIF(Anlass1:Anlass18,"") -> 
B2: p | F2: Schiessen | I2: 1 | L2: 2 | O2: 3 | R2: 4 | U2: 5 | X2: 6 | AA2: 7 | AD2: 8 | AG2: 9 | AJ2: 10 | AM2: 11 | AP2: 12 | AS2: 13 | AV2: 14 | AY2: 15 | BB2: 16 | BE2: 17 | BH2: 18 | BK2: 19 | DL2: Tabelle für Sverweise
B3: =B1 -> V_61 | C3: Maximum | F3: Pt. | G3: 100 | J3: 72 | M3: 85 | P3: 100 | S3: 100 | V3: 100 | Y3: 150 | AB3: 100 | AE3: 100 | AH3: 40 | AK3: 60 | AN3: 100 | AQ3: 100 | AT3: 100 | BI3: 60 | BS3: =COUNTA(I4:BK4)-1 -> 13 | BT3: Schiessanlässe | BZ3: listet Alle Prozentzahlen von RL | DL3: 1 | DO3: 2 | DR3: 3 | DU3: 4 | DX3: 5 | EA3: 6 | ED3: 7 | EG3: 8 | EJ3: 9 | EM3: 10 | EP3: 11 | ES3: 12 | EV3: 13 | EY3: 14 | FB3: 15 | FE3: 16 | FH3: 17 | FK3: 18 | FN3: 19
A4: Rang | C4: =TODAY() -> 2020-01-24 | I4: Cup oder Endschiessen | L4: Eidg. Feldschiessen | O4: Oblig. Bundesprogramm | R4: 2. Frickt. Winterschiessen | U4: Fluhschiessen | X4: Grenzschutzschiessen | AA4: Einzel- & Gruppenwettsch. | AD4: Gheischiessen | AG4: Sparbligschiessen | AJ4: Eichwaldschiessen | AM4: Bezirksverbandschiessen | AP4: Ob.frickt. Verb.Schiessen | AS4: Frickbergschiessen | AV4: Sagemühlischiessen | BM4: Total aller Schiessen in % | BN4: Total aller PUNKTE | BO4: RANGLISTE | BP4: =BP1 -> 9 | BQ4: =BP1 -> 9 | BR4: Æ aller Schiessen in % | BU4: Anzahl der Grösten % Zahlen | BV4: 4 - 13 Aktiv | BX4: Zähle Anzahl der Schiessen | BY4: Summe aller % | BZ4: =I4 -> Cup oder Endschiessen | CA4: =L4 -> Eidg. Feldschiessen | CB4: =O4 -> Oblig. Bundesprogramm | CC4: =R4 -> 2. Frickt. Winterschiessen | CD4: =U4 -> Fluhschiessen | CE4: =X4 -> Grenzschutzschiessen | CF4: =AA4 -> Einzel- & Gruppenwettsch. | CG4: =AD4 -> Gheischiessen | CH4: =AG4 -> Sparbligschiessen | CI4: =AJ4 -> Eichwaldschiessen | CJ4: =AM4 -> Bezirksverbandschiessen | CK4: =AP4 -> Ob.frickt. Verb.Schiessen | CL4: =AS4 -> Frickbergschiessen | CM4: =AV4 -> Sagemühlischiessen | CN4: =AY4 -> 0 | CO4: =BB4 -> 0 | CP4: =BE4 -> 0 | CQ4: =BH4 -> 0 | CR4: =BK4 -> 0 | CS4: Res. | DL4: H | DO4: K | DR4: N | DU4: Q | DX4: T | EA4: W | ED4: Z | EG4: AC | EJ4: AF | EM4: AI | EP4: AL | ES4: AO | EV4: AR | EY4: AU | FB4: AX | FE4: BA | FH4: BD | FK4: BG | FN4: BJ
G5: Pt. | H5: W | I5: % | J5: Pt. | K5: W | L5: % | M5: Pt. | N5: W | O5: % | P5: Pt. | Q5: W | R5: % | S5: Pt. | T5: W | U5: % | V5: Pt. | W5: W | X5: % | Y5: Pt. | Z5: W | AA5: % | AB5: Pt. | AC5: W | AD5: % | AE5: Pt. | AF5: W | AG5: % | AH5: Pt. | AI5: W | AJ5: % | AK5: Pt. | AL5: W | AM5: % | AN5: Pt. | AO5: W | AP5: % | AQ5: Pt. | AR5: W | AS5: % | AT5: Pt. | AU5: W | AV5: % | AW5: Pt. | AX5: W | AY5: % | AZ5: Pt. | BA5: W | BB5: % | BC5: Pt. | BD5: W | BE5: % | BF5: Pt. | BG5: W | BH5: % | BI5: Pt. | BJ5: W | BK5: % | BZ5: 1 | CA5: 2 | CB5: 3 | CC5: 4 | CD5: 5 | CE5: 6 | CF5: 7 | CG5: 8 | CH5: 9 | CI5: 10 | CJ5: 11 | CK5: 12 | CL5: 13 | CM5: 14 | CN5: 15 | CO5: 16 | CP5: 17 | CQ5: 18 | CR5: 19 | CS5: 20
A6: =BO6 -> 1 | B6: Gisiger Alfons | G6: 92 | H6: 3 | I6: =IF(H6=1,G6*100/$G$3)+IF(H6=2,G6*101/$G$3)+IF(H6=3,G6*102/$G$3)+IF(H6=4,G6*104/$G$3) -> 93.84 | J6: 64 | K6: 3 | L6: =IF(K6=1,J6*100/$J$3)+IF(K6=2,J6*101/$J$3)+IF(K6=3,J6*102/$J$3)+IF(K6=4,J6*104/$J$3) -> 90.66666667 | M6: 81 | N6: 3 | O6: =IF(N6=1,M6*100/$M$3)+IF(N6=2,M6*101/$M$3)+IF(N6=3,M6*102/$M$3)+IF(N6=4,M6*104/$M$3) -> 97.2 | P6: 84 | Q6: 3 | R6: =IF(Q6=1,P6*100/$P$3)+IF(Q6=2,P6*101/$P$3)+IF(Q6=3,P6*102/$P$3)+IF(Q6=4,P6*104/$P$3) -> 85.68 | S6: 91 | T6: 3 | U6: =IF(T6=1,S6*100/$S$3)+IF(T6=2,S6*101/$S$3)+IF(T6=3,S6*102/$S$3)+IF(T6=4,S6*104/$S$3) -> 92.82 | V6: 89 | W6: 3 | X6: =IF(W6=1,V6*100/$V$3)+IF(W6=2,V6*101/$V$3)+IF(W6=3,V6*102/$V$3)+IF(W6=4,V6*104/$V$3) -> 90.78 | Y6: 137 | Z6: 3 | AA6: =IF(Z6=1,Y6*100/$Y$3)+IF(Z6=2,Y6*101/$Y$3)+IF(Z6=3,Y6*102/$Y$3)+IF(Z6=4,Y6*104/$Y$3) -> 93.16 | AB6: 87 | AC6: 3 | AD6: =IF(AC6=1,AB6*100/$AB$3)+IF(AC6=2,AB6*101/$AB$3)+IF(AC6=3,AB6*102/$AB$3)+IF(AC6=4,AB6*104/$AB$3) -> 88.74 | AE6: 89 | AF6: 3 | AG6: =IF(AF6=1,AE6*100/$AE$3)+IF(AF6=2,AE6*101/$AE$3)+IF(AF6=3,AE6*102/$AE$3)+IF(AF6=4,AE6*104/$AE$3) -> 90.78 | AH6: 37 | AI6: 3 | AJ6: =IF(AI6=1,AH6*100/$AH$3)+IF(AI6=2,AH6*101/$AH$3)+IF(AI6=3,AH6*102/$AH$3)+IF(AI6=4,AH6*104/$AH$3) -> 94.35 | AK6: 58 | AL6: 3 | AM6: =IF(AL6=1,AK6*100/$AK$3)+IF(AL6=2,AK6*101/$AK$3)+IF(AL6=3,AK6*102/$AK$3)+IF(AL6=4,AK6*104/$AK$3) -> 98.6 | AN6: 97 | AO6: 3 | AP6: =IF(AO6=1,AN6*100/$AN$3)+IF(AO6=2,AN6*101/$AN$3)+IF(AO6=3,AN6*102/$AN$3)+IF(AO6=4,AN6*104/$AN$3) -> 98.94 | AQ6: 92 | AR6: 3 | AS6: =IF(AR6=1,AQ6*100/$AQ$3)+IF(AR6=2,AQ6*101/$AQ$3)+IF(AR6=3,AQ6*102/$AQ$3)+IF(AR6=4,AQ6*104/$AQ$3) -> 93.84 | AT6: 86 | AU6: 3 | AV6: =IF(AU6=1,AT6*100/$AT$3)+IF(AU6=2,AT6*101/$AT$3)+IF(AU6=3,AT6*102/$AT$3)+IF(AU6=4,AT6*104/$AT$3) -> 87.72 | AY6: =IF(AX6=1,AW6*100/$AW$3)+IF(AX6=2,AW6*101/$AW$3)+IF(AX6=3,AW6*102/$AW$3)+IF(AX6=4,AW6*104/$AW$3) -> 0 | BB6: =IF(BA6=1,AZ6*100/$AZ$3)+IF(BA6=2,AZ6*101/$AZ$3)+IF(BA6=3,AZ6*102/$AZ$3)+IF(BA6=4,AZ6*104/$AZ$3) -> 0 | BE6: =IF(BD6=1,BC6*100/$BC$3)+IF(BD6=2,BC6*101/$BC$3)+IF(BD6=3,BC6*102/$BC$3)+IF(BD6=4,BC6*104/$BC$3) -> 0 | BH6: =IF(BG6=1,BF6*100/$BF$3)+IF(BG6=2,BF6*101/$BF$3)+IF(BG6=3,BF6*102/$BF$3)+IF(BG6=4,BF6*104/$BF$3) -> 0 | BK6: =IF(BJ6=1,BI6*100/$BI$3)+IF(BJ6=2,BI6*101/$BI$3)+IF(BJ6=3,BI6*102/$BI$3)+IF(BJ6=4,BI6*104/$BI$3) -> 0 | BM6: =SUM(I6+L6+O6+R6+U6+X6+AA6+AD6+AG6+AJ6+AM6+AP6+AS6+AV6+AY6+BB6+BE6+BH6+BK6) -> 1297.116667 | BN6: =SUM(G6+J6+M6+P6+S6+V6+Y6+AB6+AE6+AH6+AK6+AN6+AQ6+AT6+AW6+AZ6+BC6+BF6) -> 1184 | BO6: =RANK(BP6,BP$6:BP$30,0) -> 1 | BP6: =LARGE($BZ6:$CS6,1)+LARGE($BZ6:$CS6,2)+LARGE($BZ6:$CS6,3)+LARGE($BZ6:$CS6,4)+LARGE($BZ6:$CS6,5)+LARGE($BZ6:$CS6,6)+LARGE($BZ6:$CS6,7)+LARGE($BZ6:$CS6,8)+LARGE($BZ6:$CS6,9) -> 853.53 | BQ6: =BP6/BP$1 -> 94.83666667 | BR6: =BP6/BX6 -> 60.96642857 | BU6: =LARGE($BZ6:$CS6,1)+LARGE($BZ6:$CS6,2)+LARGE($BZ6:$CS6,3)+LARGE($BZ6:$CS6,4) -> 389.09 | BV6: 4 | BX6: =COUNTIF(BZ6:CS6,">1") -> 14 | BY6: =SUM(BZ6:CS6) -> 1297.116667 | BZ6: =I6 -> 93.84 | CA6: =L6 -> 90.66666667 | CB6: =O6 -> 97.2 | CC6: =R6 -> 85.68 | CD6: =U6 -> 92.82 | CE6: =X6 -> 90.78 | CF6: =AA6 -> 93.16 | CG6: =AD6 -> 88.74 | CH6: =AG6 -> 90.78 | CI6: =AJ6 -> 94.35 | CJ6: =AM6 -> 98.6 | CK6: =AP6 -> 98.94 | CL6: =AS6 -> 93.84 | CM6: =AV6 -> 87.72 | CN6: =AY6 -> 0 | CO6: =BB6 -> 0 | CP6: =BE6 -> 0 | CQ6: =BH6 -> 0 | CR6: =BK6 -> 0 | DL6: =H6&G6 -> 392 | DO6: =K6&J6 -> 364 | DR6: =N6&M6 -> 381 | DU6: =Q6&P6 -> 384 | DX6: =T6&S6 -> 391 | EA6: =W6&V6 -> 389 | ED6: =Z6&Y6 -> 3137 | EG6: =AC6&AB6 -> 387 | EJ6: =AF6&AE6 -> 389 | EM6: =AI6&AH6 -> 337 | EP6: =AL6&AK6 -> 358 | ES6: =AO6&AN6 -> 397 | EV6: =AR6&AQ6 -> 392 | EY6: =AU6&AT6 -> 386 | FB6: =AX6&AW6 ->  | FE6: =BA6&AZ6 ->  | FH6: =BD6&BC6 ->  | FK6: =BG6&BF6 ->  | FN6: =BJ6&BI6 -> 
A7: =BO7 -> 2 | B7: Leubin Othmar | G7: 94 | H7: 3 | I7: 95.88 | J7: 67 | K7: 2 | L7: 93.98611111 | M7: 82 | N7: 2 | O7: 97.43529412 | P7: 88 | Q7: 2 | R7: 88.88 | S7: 90 | T7: 2 | U7: 90.9 | V7: 87 | W7: 2 | X7: 87.87 | Y7: 138 | Z7: 2 | AA7: 92.92 | AB7: 84 | AC7: 2 | AD7: 84.84 | AE7: 94 | AF7: 2 | AG7: 94.94 | AH7: 36 | AI7: 2 | AJ7: 90.9 | AK7: 57 | AL7: 2 | AM7: 95.95 | AN7: 92 | AO7: 2 | AP7: 92.92 | AQ7: 92 | AR7: 2 | AS7: 92.92 | AT7: 87 | AU7: 2 | AV7: 87.87 | AY7: 0 | BB7: 0 | BE7: 0 | BH7: 0 | BK7: 0 | BM7: 1288.211405 | BN7: 1188 | BO7: 2 | BP7: 847.8514052 | BQ7: 94.20571169 | BR7: =BP7/BX7 -> 60.56081466 | BU7: =LARGE($BZ7:$CS7,1)+LARGE($BZ7:$CS7,2)+LARGE($BZ7:$CS7,3)+LARGE($BZ7:$CS7,4)+LARGE($BZ7:$CS7,5) -> 478.1914052 | BV7: 5 | BX7: =COUNTIF(BZ7:CS7,">1") -> 14 | BY7: =SUM(BZ7:CS7) -> 1288.211405 | BZ7: =I7 -> 95.88 | CA7: =L7 -> 93.98611111 | CB7: =O7 -> 97.43529412 | CC7: =R7 -> 88.88 | CD7: =U7 -> 90.9 | CE7: =X7 -> 87.87 | CF7: =AA7 -> 92.92 | CG7: =AD7 -> 84.84 | CH7: =AG7 -> 94.94 | CI7: =AJ7 -> 90.9 | CJ7: =AM7 -> 95.95 | CK7: =AP7 -> 92.92 | CL7: =AS7 -> 92.92 | CM7: =AV7 -> 87.87 | CN7: =AY7 -> 0 | CO7: =BB7 -> 0 | CP7: =BE7 -> 0 | CQ7: =BH7 -> 0 | CR7: =BK7 -> 0 | DL7: =H7&G7 -> 394 | DO7: =K7&J7 -> 267 | DR7: =N7&M7 -> 282 | DU7: =Q7&P7 -> 288 | DX7: =T7&S7 -> 290 | EA7: =W7&V7 -> 287 | ED7: =Z7&Y7 -> 2138 | EG7: =AC7&AB7 -> 284 | EJ7: =AF7&AE7 -> 294 | EM7: =AI7&AH7 -> 236 | EP7: =AL7&AK7 -> 257 | ES7: =AO7&AN7 -> 292 | EV7: =AR7&AQ7 -> 292 | EY7: =AU7&AT7 -> 287 | FB7: =AX7&AW7 ->  | FE7: =BA7&AZ7 ->  | FH7: =BD7&BC7 ->  | FK7: =BG7&BF7 ->  | FN7: =BJ7&BI7 -> 
A8: =BO8 -> 3 | B8: Ruflin Felix | G8: 91 | H8: 3 | I8: 92.82 | J8: 65 | K8: 3 | L8: 92.08333333 | M8: 77 | N8: 3 | O8: 92.4 | P8: 95 | Q8: 3 | R8: 96.9 | S8: 93 | T8: 3 | U8: 94.86 | V8: 90 | W8: 3 | X8: 91.8 | Y8: 135 | Z8: 3 | AA8: 91.8 | AB8: 91 | AC8: 3 | AD8: 92.82 | AE8: 92 | AF8: 3 | AG8: 93.84 | AH8: 32 | AI8: 3 | AJ8: 81.6 | AK8: 53 | AL8: 3 | AM8: 90.1 | AN8: 91 | AO8: 3 | AP8: 92.82 | AQ8: 93 | AR8: 3 | AS8: 94.86 | AT8: 84 | AU8: 3 | AV8: 85.68 | AY8: 0 | BB8: 0 | BE8: 0 | BH8: 0 | BK8: 0 | BM8: 1284.383333 | BN8: 1182 | BO8: 3 | BP8: 843.4033333 | BQ8: 93.71148148 | BR8: =BP8/BX8 -> 60.24309524 | BU8: =LARGE($BZ8:$CS8,1)+LARGE($BZ8:$CS8,2)+LARGE($BZ8:$CS8,3)+LARGE($BZ8:$CS8,4)+LARGE($BZ8:$CS8,5)+LARGE($BZ8:$CS8,6) -> 566.1 | BV8: 6 | BX8: 14 | BY8: 1284.383333 | BZ8: 92.82 | CA8: 92.08333333 | CB8: 92.4 | CC8: 96.9 | CD8: 94.86 | CE8: 91.8 | CF8: 91.8 | CG8: 92.82 | CH8: 93.84 | CI8: 81.6 | CJ8: 90.1 | CK8: 92.82 | CL8: 94.86 | CM8: 85.68 | CN8: 0 | CO8: 0 | CP8: 0 | CQ8: 0 | CR8: 0 | DL8: 391 | DO8: 365 | DR8: 377 | DU8: 395 | DX8: 393 | EA8: 390 | ED8: 3135 | EG8: 391 | EJ8: 392 | EM8: 332 | EP8: 353 | ES8: 391 | EV8: 393 | EY8: 384
A9: 4 | B9: Buser Dario | G9: 89 | H9: 3 | I9: 90.78 | J9: 69 | K9: 2 | L9: 96.79166667 | M9: 82 | N9: 2 | O9: 97.43529412 | R9: 0 | S9: 83 | T9: 2 | U9: 83.83 | V9: 84 | W9: 2 | X9: 84.84 | Y9: 131 | Z9: 3 | AA9: 89.08 | AB9: 87 | AC9: 3 | AD9: 88.74 | AE9: 88 | AF9: 2 | AG9: 88.88 | AH9: 37 | AI9: 2 | AJ9: 93.425 | AK9: 55 | AL9: 2 | AM9: 92.58333333 | AN9: 89 | AO9: 2 | AP9: 89.89 | AQ9: 86 | AR9: 2 | AS9: 86.86 | AT9: 90 | AU9: 2 | AV9: 90.9 | AY9: 0 | BB9: 0 | BE9: 0 | BH9: 0 | BK9: 0 | BM9: 1174.035294 | BN9: 1070 | BO9: 4 | BP9: 829.7652941 | BQ9: 92.19614379 | BR9: 63.82809955 | BU9: =LARGE($BZ9:$CS9,1)+LARGE($BZ9:$CS9,2)+LARGE($BZ9:$CS9,3)+LARGE($BZ9:$CS9,4)+LARGE($BZ9:$CS9,5)+LARGE($BZ9:$CS9,6)+LARGE($BZ9:$CS9,7) -> 651.8052941 | BV9: 7 | BX9: 13 | BY9: 1174.035294 | BZ9: 90.78 | CA9: 96.79166667 | CB9: 97.43529412 | CC9: 0 | CD9: 83.83 | CE9: 84.84 | CF9: 89.08 | CG9: 88.74 | CH9: 88.88 | CI9: 93.425 | CJ9: 92.58333333 | CK9: 89.89 | CL9: 86.86 | CM9: 90.9 | CN9: 0 | CO9: 0 | CP9: 0 | CQ9: 0 | CR9: 0 | DL9: 389 | DO9: 269 | DR9: 282 | DX9: 283 | EA9: 284 | ED9: 3131 | EG9: 387 | EJ9: 288 | EM9: 237 | EP9: 255 | ES9: 289 | EV9: 286 | EY9: 290
A10: 5 | B10: Kalt Kurt | G10: 90 | H10: 2 | I10: 90.9 | J10: 63 | K10: 2 | L10: 88.375 | M10: 76 | N10: 2 | O10: 90.30588235 | P10: 87 | Q10: 2 | R10: 87.87 | S10: 94 | T10: 2 | U10: 94.94 | V10: 86 | W10: 2 | X10: 86.86 | Y10: 128 | Z10: 2 | AA10: 86.18666667 | AB10: 83 | AC10: 2 | AD10: 83.83 | AE10: 90 | AF10: 2 | AG10: 90.9 | AH10: 33 | AI10: 2 | AJ10: 83.325 | AK10: 52 | AL10: 2 | AM10: 87.53333333 | AN10: 87 | AO10: 2 | AP10: 87.87 | AQ10: 86 | AR10: 2 | AS10: 86.86 | AT10: 89 | AU10: 2 | AV10: 89.89 | AY10: 0 | BB10: 0 | BE10: 0 | BH10: 0 | BK10: 0 | BM10: 1235.645882 | BN10: 1144 | BO10: 5 | BP10: 808.5842157 | BQ10: 89.84269063 | BR10: 57.75601541 | BU10: =LARGE($BZ10:$CS10,1)+LARGE($BZ10:$CS10,2)+LARGE($BZ10:$CS10,3)+LARGE($BZ10:$CS10,4)+LARGE($BZ10:$CS10,5)+LARGE($BZ10:$CS10,6)+LARGE($BZ10:$CS10,7)+LARGE($BZ10:$CS10,8) -> 721.0508824 | BV10: 8 | BX10: 14 | BY10: 1235.645882 | BZ10: 90.9 | CA10: 88.375 | CB10: 90.30588235 | CC10: 87.87 | CD10: 94.94 | CE10: 86.86 | CF10: 86.18666667 | CG10: 83.83 | CH10: 90.9 | CI10: 83.325 | CJ10: 87.53333333 | CK10: 87.87 | CL10: 86.86 | CM10: 89.89 | CN10: 0 | CO10: 0 | CP10: 0 | CQ10: 0 | CR10: 0 | DL10: 290 | DO10: 263 | DR10: 276 | DU10: 287 | DX10: 294 | EA10: 286 | ED10: 2128 | EG10: 283 | EJ10: 290 | EM10: 233 | EP10: 252 | ES10: 287 | EV10: 286 | EY10: 289
A11: 6 | B11: Karaboyun Murat | G11: 86 | H11: 2 | I11: 86.86 | J11: 62 | K11: 2 | L11: 86.97222222 | O11: 0 | P11: 83 | Q11: 2 | R11: 83.83 | S11: 89 | T11: 2 | U11: 89.89 | V11: 87 | W11: 2 | X11: 87.87 | Y11: 126 | Z11: 2 | AA11: 84.84 | AB11: 91 | AC11: 2 | AD11: 91.91 | AE11: 92 | AF11: 2 | AG11: 92.92 | AH11: 33 | AI11: 2 | AJ11: 83.325 | AK11: 56 | AL11: 2 | AM11: 94.26666667 | AN11: 83 | AO11: 2 | AP11: 83.83 | AQ11: 80 | AR11: 2 | AS11: 80.8 | AT11: 88 | AU11: 2 | AV11: 88.88 | AY11: 0 | BB11: 0 | BE11: 0 | BH11: 0 | BK11: 0 | BM11: 1136.193889 | BN11: 1056 | BO11: 6 | BP11: 804.4088889 | BQ11: 89.37876543 | BR11: 61.87760684 | BU11: =LARGE($BZ11:$CS11,1)+LARGE($BZ11:$CS11,2)+LARGE($BZ11:$CS11,3)+LARGE($BZ11:$CS11,4)+LARGE($BZ11:$CS11,5)+LARGE($BZ11:$CS11,6)+LARGE($BZ11:$CS11,7)+LARGE($BZ11:$CS11,8)+LARGE($BZ11:$CS11,9) -> 804.4088889 | BV11: 9 | BX11: 13 | BY11: 1136.193889 | BZ11: 86.86 | CA11: 86.97222222 | CB11: 0 | CC11: 83.83 | CD11: 89.89 | CE11: 87.87 | CF11: 84.84 | CG11: 91.91 | CH11: 92.92 | CI11: 83.325 | CJ11: 94.26666667 | CK11: 83.83 | CL11: 80.8 | CM11: 88.88 | CN11: 0 | CO11: 0 | CP11: 0 | CQ11: 0 | CR11: 0 | DL11: 286 | DO11: 262 | DU11: 283 | DX11: 289 | EA11: 287 | ED11: 2126 | EG11: 291 | EJ11: 292 | EM11: 233 | EP11: 256 | ES11: 283 | EV11: 280 | EY11: 288
A12: 7 | B12: Buser Marcel | G12: 86 | H12: 2 | I12: 86.86 | J12: 56 | K12: 3 | L12: 79.33333333 | M12: 73 | N12: 3 | O12: 87.6 | P12: 81 | Q12: 3 | R12: 82.62 | S12: 83 | T12: 3 | U12: 84.66 | V12: 92 | W12: 3 | X12: 93.84 | Y12: 131 | Z12: 3 | AA12: 89.08 | AB12: 71 | AC12: 3 | AD12: 72.42 | AE12: 80 | AF12: 3 | AG12: 81.6 | AH12: 32 | AI12: 3 | AJ12: 81.6 | AK12: 51 | AL12: 3 | AM12: 86.7 | AN12: 75 | AO12: 2 | AP12: 75.75 | AQ12: 91 | AR12: 2 | AS12: 91.91 | AT12: 92 | AU12: 2 | AV12: 92.92 | AY12: 0 | BB12: 0 | BE12: 0 | BH12: 0 | BK12: 0 | BM12: 1186.893333 | BN12: 1094 | BO12: 7 | BP12: 796.19 | BQ12: 88.46555556 | BR12: 56.87071429 | BU12: =LARGE($BZ12:$CS12,1)+LARGE($BZ12:$CS12,2)+LARGE($BZ12:$CS12,3)+LARGE($BZ12:$CS12,4)+LARGE($BZ12:$CS12,5)+LARGE($BZ12:$CS12,6)+LARGE($BZ12:$CS12,7)+LARGE($BZ12:$CS12,8)+LARGE($BZ12:$CS12,9)+LARGE($BZ12:$CS12,10) -> 877.79 | BV12: 10 | BX12: 14 | BY12: 1186.893333 | BZ12: 86.86 | CA12: 79.33333333 | CB12: 87.6 | CC12: 82.62 | CD12: 84.66 | CE12: 93.84 | CF12: 89.08 | CG12: 72.42 | CH12: 81.6 | CI12: 81.6 | CJ12: 86.7 | CK12: 75.75 | CL12: 91.91 | CM12: 92.92 | CN12: 0 | CO12: 0 | CP12: 0 | CQ12: 0 | CR12: 0 | DL12: 286 | DO12: 356 | DR12: 373 | DU12: 381 | DX12: 383 | EA12: 392 | ED12: 3131 | EG12: 371 | EJ12: 380 | EM12: 332 | EP12: 351 | ES12: 275 | EV12: 291 | EY12: 292
A13: 8 | B13: Eugster Josef | G13: 86 | H13: 2 | I13: 86.86 | J13: 59 | K13: 2 | L13: 82.76388889 | M13: 73 | N13: 2 | O13: 86.74117647 | P13: 80 | Q13: 2 | R13: 80.8 | S13: 82 | T13: 2 | U13: 82.82 | V13: 86 | W13: 2 | X13: 86.86 | Y13: 127 | Z13: 2 | AA13: 85.51333333 | AB13: 85 | AC13: 2 | AD13: 85.85 | AE13: 85 | AF13: 2 | AG13: 85.85 | AH13: 31 | AI13: 2 | AJ13: 78.275 | AK13: 54 | AL13: 2 | AM13: 90.9 | AN13: 89 | AO13: 2 | AP13: 89.89 | AQ13: 87 | AR13: 2 | AS13: 87.87 | AT13: 87 | AU13: 2 | AV13: 87.87 | AY13: 0 | BB13: 0 | BE13: 0 | BH13: 0 | BK13: 0 | BM13: 1198.863399 | BN13: 1111 | BO13: 8 | BP13: 788.6911765 | BQ13: 87.63235294 | BR13: 56.33508403 | BU13: =LARGE($BZ13:$CS13,1)+LARGE($BZ13:$CS13,2)+LARGE($BZ13:$CS13,3)+LARGE($BZ13:$CS13,4)+LARGE($BZ13:$CS13,5)+LARGE($BZ13:$CS13,6)+LARGE($BZ13:$CS13,7)+LARGE($BZ13:$CS13,8)+LARGE($BZ13:$CS13,9)+LARGE($BZ13:$CS13,10)+LARGE($BZ13:$CS13,11) -> 957.0245098 | BV13: 11 | BX13: 14 | BY13: 1198.863399 | BZ13: 86.86 | CA13: 82.76388889 | CB13: 86.74117647 | CC13: 80.8 | CD13: 82.82 | CE13: 86.86 | CF13: 85.51333333 | CG13: 85.85 | CH13: 85.85 | CI13: 78.275 | CJ13: 90.9 | CK13: 89.89 | CL13: 87.87 | CM13: 87.87 | CN13: 0 | CO13: 0 | CP13: 0 | CQ13: 0 | CR13: 0 | DL13: 286 | DO13: 259 | DR13: 273 | DU13: 280 | DX13: 282 | EA13: 286 | ED13: 2127 | EG13: 285 | EJ13: 285 | EM13: 231 | EP13: 254 | ES13: 289 | EV13: 287 | EY13: 287
A14: 9 | B14: Ries Benjamin | G14: 80 | H14: 3 | I14: 81.6 | L14: 0 | O14: 0 | P14: 91 | Q14: 3 | R14: 92.82 | S14: 85 | T14: 3 | U14: 86.7 | V14: 91 | W14: 3 | X14: 92.82 | Y14: 117 | Z14: 3 | AA14: 79.56 | AB14: 86 | AC14: 3 | AD14: 87.72 | AG14: 0 | AJ14: 0 | AK14: 50 | AL14: 3 | AM14: 85 | AN14: 88 | AO14: 3 | AP14: 89.76 | AQ14: 80 | AR14: 3 | AS14: 81.6 | AT14: 76 | AU14: 3 | AV14: 77.52 | AY14: 0 | BB14: 0 | BE14: 0 | BH14: 0 | BK14: 0 | BM14: 855.1 | BN14: 844 | BO14: 9 | BP14: 777.58 | BQ14: 86.39777778 | BR14: 77.758 | BU14: =LARGE($BZ14:$CS14,1)+LARGE($BZ14:$CS14,2)+LARGE($BZ14:$CS14,3)+LARGE($BZ14:$CS14,4)+LARGE($BZ14:$CS14,5)+LARGE($BZ14:$CS14,6)+LARGE($BZ14:$CS14,7)+LARGE($BZ14:$CS14,8)+LARGE($BZ14:$CS14,9)+LARGE($BZ14:$CS14,10)+LARGE($BZ14:$CS14,11)+LARGE($BZ14:$CS14,12) -> 855.1 | BV14: 12 | BX14: 10 | BY14: 855.1 | BZ14: 81.6 | CA14: 0 | CB14: 0 | CC14: 92.82 | CD14: 86.7 | CE14: 92.82 | CF14: 79.56 | CG14: 87.72 | CH14: 0 | CI14: 0 | CJ14: 85 | CK14: 89.76 | CL14: 81.6 | CM14: 77.52 | CN14: 0 | CO14: 0 | CP14: 0 | CQ14: 0 | CR14: 0 | DL14: 380 | DU14: 391 | DX14: 385 | EA14: 391 | ED14: 3117 | EG14: 386 | EP14: 350 | ES14: 388 | EV14: 380 | EY14: 376
A15: 10 | B15: Ilkic Thomas | G15: 83 | H15: 2 | I15: 83.83 | J15: 54 | K15: 2 | L15: 75.75 | M15: 62 | N15: 2 | O15: 73.67058824 | P15: 60 | Q15: 2 | R15: 60.6 | S15: 84 | T15: 2 | U15: 84.84 | V15: 83 | W15: 2 | X15: 83.83 | Y15: 119 | Z15: 2 | AA15: 80.12666667 | AB15: 86 | AC15: 2 | AD15: 86.86 | AE15: 89 | AF15: 2 | AG15: 89.89 | AH15: 22 | AI15: 2 | AJ15: 55.55 | AK15: 54 | AL15: 2 | AM15: 90.9 | AN15: 78 | AO15: 2 | AP15: 78.78 | AQ15: 80 | AR15: 2 | AS15: 80.8 | AT15: 77 | AU15: 2 | AV15: 77.77 | AY15: 0 | BB15: 0 | BE15: 0 | BH15: 0 | BK15: 0 | BM15: 1103.197255 | BN15: 1031 | BO15: 10 | BP15: 759.8566667 | BQ15: 84.42851852 | BR15: 54.27547619 | BU15: =LARGE($BZ15:$CS15,1)+LARGE($BZ15:$CS15,2)+LARGE($BZ15:$CS15,3)+LARGE($BZ15:$CS15,4)+LARGE($BZ15:$CS15,5)+LARGE($BZ15:$CS15,6)+LARGE($BZ15:$CS15,7)+LARGE($BZ15:$CS15,8)+LARGE($BZ15:$CS15,9)+LARGE($BZ15:$CS15,10)+LARGE($BZ15:$CS15,11)+LARGE($BZ15:$CS15,12)+LARGE($BZ15:$CS15,13) -> 1047.647255 | BV15: 13 | BX15: 14 | BY15: 1103.197255 | BZ15: 83.83 | CA15: 75.75 | CB15: 73.67058824 | CC15: 60.6 | CD15: 84.84 | CE15: 83.83 | CF15: 80.12666667 | CG15: 86.86 | CH15: 89.89 | CI15: 55.55 | CJ15: 90.9 | CK15: 78.78 | CL15: 80.8 | CM15: 77.77 | CN15: 0 | CO15: 0 | CP15: 0 | CQ15: 0 | CR15: 0 | DL15: 283 | DO15: 254 | DR15: 262 | DU15: 260 | DX15: 284 | EA15: 283 | ED15: 2119 | EG15: 286 | EJ15: 289 | EM15: 222 | EP15: 254 | ES15: 278 | EV15: 280 | EY15: 277
A16: 11 | B16: Elmiger Jan | I16: 0 | J16: 59 | K16: 3 | L16: 83.58333333 | M16: 55 | N16: 3 | O16: 66 | P16: 76 | Q16: 3 | R16: 77.52 | S16: 81 | T16: 3 | U16: 82.62 | V16: 85 | W16: 3 | X16: 86.7 | Y16: 78 | Z16: 3 | AA16: 53.04 | AB16: 65 | AC16: 3 | AD16: 66.3 | AG16: 0 | AJ16: 0 | AK16: 51 | AL16: 3 | AM16: 86.7 | AN16: 85 | AO16: 3 | AP16: 86.7 | AQ16: 80 | AR16: 3 | AS16: 81.6 | AT16: 71 | AU16: 3 | AV16: 72.42 | AY16: 0 | BB16: 0 | BE16: 0 | BH16: 0 | BK16: 0 | BM16: 843.1833333 | BN16: 786 | BO16: 11 | BP16: 724.1433333 | BQ16: 80.46037037 | BR16: 65.83121212 | BU16: =LARGE(BZ16:CS16,1)+LARGE(BZ16:CS16,2)+LARGE(BZ16:CS16,3)+LARGE(BZ16:CS16,4)+LARGE(BZ16:CS16,5)+LARGE(BZ16:CS16,6)+LARGE(BZ16:CS16,7)+LARGE(BZ16:CS16,8)+LARGE(BZ16:CS16,9)+LARGE(BZ16:CS16,10)+LARGE(BZ16:CS16,11)+LARGE(BZ16:CS16,12)+LARGE(BZ16:CS16,13)+LARGE(BZ16:CS16,14) -> 843.1833333 | BV16: 14 | BX16: 11 | BY16: 843.1833333 | BZ16: 0 | CA16: 83.58333333 | CB16: 66 | CC16: 77.52 | CD16: 82.62 | CE16: 86.7 | CF16: 53.04 | CG16: 66.3 | CH16: 0 | CI16: 0 | CJ16: 86.7 | CK16: 86.7 | CL16: 81.6 | CM16: 72.42 | CN16: 0 | CO16: 0 | CP16: 0 | CQ16: 0 | CR16: 0 | DO16: 359 | DR16: 355 | DU16: 376 | DX16: 381 | EA16: 385 | ED16: 378 | EG16: 365 | EP16: 351 | ES16: 385 | EV16: 380 | EY16: 371
A17: 12 | B17: Krätz Ruedi | G17: 76 | H17: 3 | I17: 77.52 | J17: 57 | K17: 3 | L17: 80.75 | M17: 72 | N17: 3 | O17: 86.4 | P17: 82 | Q17: 3 | R17: 83.64 | U17: 0 | V17: 75 | W17: 3 | X17: 76.5 | Y17: 122 | Z17: 3 | AA17: 82.96 | AD17: 0 | AE17: 66 | AF17: 3 | AG17: 67.32 | AH17: 26 | AI17: 3 | AJ17: 66.3 | AK17: 40 | AL17: 3 | AM17: 68 | AN17: 83 | AO17: 3 | AP17: 84.66 | AQ17: 75 | AR17: 3 | AS17: 76.5 | AV17: 0 | AY17: 0 | BB17: 0 | BE17: 0 | BH17: 0 | BK17: 0 | BM17: 850.55 | BN17: 774 | BO17: 12 | BP17: 716.93 | BQ17: 79.65888889 | BR17: 65.17545455 | BU17: =LARGE(BZ17:CS17,1)+LARGE(BZ17:CS17,2)+LARGE(BZ17:CS17,3)+LARGE(BZ17:CS17,4)+LARGE(BZ17:CS17,5)+LARGE(BZ17:CS17,6)+LARGE(BZ17:CS17,7)+LARGE(BZ17:CS17,8)+LARGE(BZ17:CS17,9)+LARGE(BZ17:CS17,10)+LARGE(BZ17:CS17,11)+LARGE(BZ17:CS17,12)+LARGE(BZ17:CS17,13)+LARGE(BZ17:CS17,14)+LARGE(BZ17:CS17,15) -> 850.55 | BV17: 15 | BX17: 11 | BY17: 850.55 | BZ17: 77.52 | CA17: 80.75 | CB17: 86.4 | CC17: 83.64 | CD17: 0 | CE17: 76.5 | CF17: 82.96 | CG17: 0 | CH17: 67.32 | CI17: 66.3 | CJ17: 68 | CK17: 84.66 | CL17: 76.5 | CM17: 0 | CN17: 0 | CO17: 0 | CP17: 0 | CQ17: 0 | CR17: 0 | DL17: 376 | DO17: 357 | DR17: 372 | DU17: 382 | EA17: 375 | ED17: 3122 | EJ17: 366 | EM17: 326 | EP17: 340 | ES17: 383 | EV17: 375
A18: 13 | B18: Stocker Georg | I18: 0 | J18: 57 | K18: 2 | L18: 79.95833333 | M18: 61 | N18: 2 | O18: 72.48235294 | P18: 78 | Q18: 2 | R18: 78.78 | S18: 80 | T18: 2 | U18: 80.8 | V18: 73 | W18: 2 | X18: 73.73 | AA18: 0 | AB18: 90 | AC18: 2 | AD18: 90.9 | AG18: 0 | AJ18: 0 | AK18: 45 | AL18: 2 | AM18: 75.75 | AN18: 80 | AO18: 2 | AP18: 80.8 | AQ18: 63 | AR18: 2 | AS18: 63.63 | AV18: 0 | AY18: 0 | BB18: 0 | BE18: 0 | BH18: 0 | BK18: 0 | BM18: 696.8306863 | BN18: 627 | BO18: 13 | BP18: 696.8306863 | BQ18: 77.42563181 | BR18: 77.42563181 | BU18: =LARGE(BZ18:CS18,1)+LARGE(BZ18:CS18,2)+LARGE(BZ18:CS18,3)+LARGE(BZ18:CS18,4)+LARGE(BZ18:CS18,5)+LARGE(BZ18:CS18,6)+LARGE(BZ18:CS18,7)+LARGE(BZ18:CS18,8)+LARGE(BZ18:CS18,9)+LARGE(BZ18:CS18,10)+LARGE(BZ18:CS18,11)+LARGE(BZ18:CS18,12)+LARGE(BZ18:CS18,13)+LARGE(BZ18:CS18,14)+LARGE(BZ18:CS18,15)+LARGE(BZ18:CS18,16) -> 696.8306863 | BV18: 16 | BX18: 9 | BY18: 696.8306863 | BZ18: 0 | CA18: 79.95833333 | CB18: 72.48235294 | CC18: 78.78 | CD18: 80.8 | CE18: 73.73 | CF18: 0 | CG18: 90.9 | CH18: 0 | CI18: 0 | CJ18: 75.75 | CK18: 80.8 | CL18: 63.63 | CM18: 0 | CN18: 0 | CO18: 0 | CP18: 0 | CQ18: 0 | CR18: 0 | DO18: 257 | DR18: 261 | DU18: 278 | DX18: 280 | EA18: 273 | EG18: 290 | EP18: 245 | ES18: 280 | EV18: 263
A19: 14 | B19: Schmid Dominik | G19: 80 | H19: 3 | I19: 81.6 | J19: 57 | K19: 3 | L19: 80.75 | M19: 70 | N19: 3 | O19: 84 | R19: 0 | U19: 0 | X19: 0 | AA19: 0 | AD19: 0 | AG19: 0 | AJ19: 0 | AK19: 49 | AL19: 3 | AM19: 83.3 | AN19: 63 | AO19: 3 | AP19: 64.26 | AQ19: 86 | AR19: 3 | AS19: 87.72 | AV19: 0 | AY19: 0 | BB19: 0 | BE19: 0 | BH19: 0 | BK19: 0 | BM19: 481.63 | BN19: 405 | BO19: 14 | BP19: 481.63 | BQ19: 53.51444444 | BR19: 80.27166667 | BU19: =LARGE(BZ19:CS19,1)+LARGE(BZ19:CS19,2)+LARGE(BZ19:CS19,3)+LARGE(BZ19:CS19,4)+LARGE(BZ19:CS19,5)+LARGE(BZ19:CS19,6)+LARGE(BZ19:CS19,7)+LARGE(BZ19:CS19,8)+LARGE(BZ19:CS19,9)+LARGE(BZ19:CS19,10)+LARGE(BZ19:CS19,11)+LARGE(BZ19:CS19,12)+LARGE(BZ19:CS19,13)+LARGE(BZ19:CS19,14)+LARGE(BZ19:CS19,15)+LARGE(BZ19:CS19,16)+LARGE(BZ19:CS19,17) -> 481.63 | BV19: 17 | BX19: 6 | BY19: 481.63 | BZ19: 81.6 | CA19: 80.75 | CB19: 84 | CC19: 0 | CD19: 0 | CE19: 0 | CF19: 0 | CG19: 0 | CH19: 0 | CI19: 0 | CJ19: 83.3 | CK19: 64.26 | CL19: 87.72 | CM19: 0 | CN19: 0 | CO19: 0 | CP19: 0 | CQ19: 0 | CR19: 0 | DL19: 380 | DO19: 357 | DR19: 370 | EP19: 349 | ES19: 363 | EV19: 386
A20: 15 | B20: Kunz Peter | G20: 91 | H20: 3 | I20: 92.82 | J20: 58 | K20: 3 | L20: 82.16666667 | O20: 0 | R20: 0 | U20: 0 | X20: 0 | Y20: 121 | Z20: 3 | AA20: 82.28 | AD20: 0 | AG20: 0 | AJ20: 0 | AK20: 46 | AL20: 3 | AM20: 78.2 | AP20: 0 | AQ20: 75 | AR20: 3 | AS20: 76.5 | AV20: 0 | AY20: 0 | BB20: 0 | BE20: 0 | BH20: 0 | BK20: 0 | BM20: 411.9666667 | BN20: 391 | BO20: 15 | BP20: 411.9666667 | BQ20: 45.77407407 | BR20: 82.39333333 | BU20: =LARGE(BZ20:CS20,1)+LARGE(BZ20:CS20,2)+LARGE(BZ20:CS20,3)+LARGE(BZ20:CS20,4)+LARGE(BZ20:CS20,5)+LARGE(BZ20:CS20,6)+LARGE(BZ20:CS20,7)+LARGE(BZ20:CS20,8)+LARGE(BZ20:CS20,9)+LARGE(BZ20:CS20,10)+LARGE(BZ20:CS20,11)+LARGE(BZ20:CS20,12)+LARGE(BZ20:CS20,13)+LARGE(BZ20:CS20,14)+LARGE(BZ20:CS20,15)+LARGE(BZ20:CS20,16)+LARGE(BZ20:CS20,17)+LARGE(BZ20:CS20,18) -> 411.9666667 | BV20: 18 | BX20: 5 | BY20: 411.9666667 | BZ20: 92.82 | CA20: 82.16666667 | CB20: 0 | CC20: 0 | CD20: 0 | CE20: 0 | CF20: 82.28 | CG20: 0 | CH20: 0 | CI20: 0 | CJ20: 78.2 | CK20: 0 | CL20: 76.5 | CM20: 0 | CN20: 0 | CO20: 0 | CP20: 0 | CQ20: 0 | CR20: 0 | DL20: 391 | DO20: 358 | ED20: 3121 | EP20: 346 | EV20: 375
A21: 16 | B21: Elmiger Lars | I21: 0 | J21: 55 | K21: 3 | L21: 77.91666667 | M21: 70 | N21: 3 | O21: 84 | R21: 0 | U21: 0 | X21: 0 | Y21: 120 | Z21: 3 | AA21: 81.6 | AD21: 0 | AG21: 0 | AJ21: 0 | AM21: 0 | AP21: 0 | AQ21: 83 | AR21: 3 | AS21: 84.66 | AT21: 70 | AU21: 3 | AV21: 71.4 | AY21: 0 | BB21: 0 | BE21: 0 | BH21: 0 | BK21: 0 | BM21: 399.5766667 | BN21: 398 | BO21: 16 | BP21: 399.5766667 | BQ21: 44.39740741 | BR21: 79.91533333 | BU21: =LARGE(BZ21:CS21,1)+LARGE(BZ21:CS21,2)+LARGE(BZ21:CS21,3)+LARGE(BZ21:CS21,4)+LARGE(BZ21:CS21,5)+LARGE(BZ21:CS21,6)+LARGE(BZ21:CS21,7)+LARGE(BZ21:CS21,8)+LARGE(BZ21:CS21,9)+LARGE(BZ21:CS21,10)+LARGE(BZ21:CS21,11)+LARGE(BZ21:CS21,12)+LARGE(BZ21:CS21,13)+LARGE(BZ21:CS21,14)+LARGE(BZ21:CS21,15)+LARGE(BZ21:CS21,16)+LARGE(BZ21:CS21,17)+LARGE(BZ21:CS21,18)+LARGE(BZ21:CS21,19) -> 399.5766667 | BV21: 19 | BX21: 5 | BY21: 399.5766667 | BZ21: 0 | CA21: 77.91666667 | CB21: 84 | CC21: 0 | CD21: 0 | CE21: 0 | CF21: 81.6 | CG21: 0 | CH21: 0 | CI21: 0 | CJ21: 0 | CK21: 0 | CL21: 84.66 | CM21: 71.4 | CN21: 0 | CO21: 0 | CP21: 0 | CQ21: 0 | CR21: 0 | DO21: 355 | DR21: 370 | ED21: 3120 | EV21: 383 | EY21: 370
A22: 17 | B22: Dornbierer Caroline | I22: 0 | J22: 55 | K22: 3 | L22: 77.91666667 | O22: 0 | P22: 79 | Q22: 3 | R22: 80.58 | U22: 0 | X22: 0 | AA22: 0 | AD22: 0 | AG22: 0 | AJ22: 0 | AM22: 0 | AN22: 74 | AO22: 3 | AP22: 75.48 | AS22: 0 | AV22: 0 | AY22: 0 | BB22: 0 | BE22: 0 | BH22: 0 | BK22: 0 | BM22: 233.9766667 | BN22: 208 | BO22: 17 | BP22: 233.9766667 | BQ22: 25.99740741 | BR22: 77.99222222 | BU22: =LARGE(BZ22:CS22,1)+LARGE(BZ22:CS22,2)+LARGE(BZ22:CS22,3)+LARGE(BZ22:CS22,4)+LARGE(BZ22:CS22,5)+LARGE(BZ22:CS22,6)+LARGE(BZ22:CS22,7)+LARGE(BZ22:CS22,8)+LARGE(BZ22:CS22,9)+LARGE(BZ22:CS22,10)+LARGE(BZ22:CS22,11)+LARGE(BZ22:CS22,12)+LARGE(BZ22:CS22,13)+LARGE(BZ22:CS22,14)+LARGE(BZ22:CS22,15)+LARGE(BZ22:CS22,16)+LARGE(BZ22:CS22,17)+LARGE(BZ22:CS22,18)+LARGE(BZ22:CS22,19)+LARGE(BZ22:CS22,20) ->  | BV22: 20 | BX22: 3 | BY22: 233.9766667 | BZ22: 0 | CA22: 77.91666667 | CB22: 0 | CC22: 80.58 | CD22: 0 | CE22: 0 | CF22: 0 | CG22: 0 | CH22: 0 | CI22: 0 | CJ22: 0 | CK22: 75.48 | CL22: 0 | CM22: 0 | CN22: 0 | CO22: 0 | CP22: 0 | CQ22: 0 | CR22: 0 | DO22: 355 | DU22: 379 | ES22: 374
A23: 18 | B23: Senft Michael | I23: 0 | L23: 0 | M23: 54 | N23: 3 | O23: 64.8 | R23: 0 | U23: 0 | X23: 0 | AA23: 0 | AD23: 0 | AG23: 0 | AJ23: 0 | AM23: 0 | AP23: 0 | AQ23: 65 | AR23: 3 | AS23: 66.3 | AT23: 60 | AU23: 3 | AV23: 61.2 | AY23: 0 | BB23: 0 | BE23: 0 | BH23: 0 | BK23: 0 | BM23: 192.3 | BN23: 179 | BO23: 18 | BP23: 192.3 | BQ23: 21.36666667 | BR23: 64.1 | BX23: 3 | BY23: 192.3 | BZ23: 0 | CA23: 0 | CB23: 64.8 | CC23: 0 | CD23: 0 | CE23: 0 | CF23: 0 | CG23: 0 | CH23: 0 | CI23: 0 | CJ23: 0 | CK23: 0 | CL23: 66.3 | CM23: 61.2 | CN23: 0 | CO23: 0 | CP23: 0 | CQ23: 0 | CR23: 0 | DR23: 354 | EV23: 365 | EY23: 360
A24: 19 | B24: Gast Esther | I24: 0 | L24: 0 | O24: 0 | P24: 64 | Q24: 2 | R24: 64.64 | U24: 0 | X24: 0 | AA24: 0 | AD24: 0 | AG24: 0 | AJ24: 0 | AM24: 0 | AP24: 0 | AQ24: 86 | AR24: 2 | AS24: 86.86 | AV24: 0 | AY24: 0 | BB24: 0 | BE24: 0 | BH24: 0 | BK24: 0 | BM24: 151.5 | BN24: 150 | BO24: 19 | BP24: 151.5 | BQ24: 16.83333333 | BR24: 75.75 | BX24: 2 | BY24: 151.5 | BZ24: 0 | CA24: 0 | CB24: 0 | CC24: 64.64 | CD24: 0 | CE24: 0 | CF24: 0 | CG24: 0 | CH24: 0 | CI24: 0 | CJ24: 0 | CK24: 0 | CL24: 86.86 | CM24: 0 | CN24: 0 | CO24: 0 | CP24: 0 | CQ24: 0 | CR24: 0 | DU24: 264 | EV24: 286
A25: 20 | B25: Vogel Reto | I25: 0 | L25: 0 | O25: 0 | P25: 76 | Q25: 3 | R25: 77.52 | U25: 0 | X25: 0 | AA25: 0 | AD25: 0 | AG25: 0 | AJ25: 0 | AM25: 0 | AP25: 0 | AS25: 0 | AV25: 0 | AY25: 0 | BB25: 0 | BE25: 0 | BH25: 0 | BK25: 0 | BM25: 77.52 | BN25: 76 | BO25: 20 | BP25: 77.52 | BQ25: 8.613333333 | BR25: 77.52 | BX25: 1 | BY25: 77.52 | BZ25: 0 | CA25: 0 | CB25: 0 | CC25: 77.52 | CD25: 0 | CE25: 0 | CF25: 0 | CG25: 0 | CH25: 0 | CI25: 0 | CJ25: 0 | CK25: 0 | CL25: 0 | CM25: 0 | CN25: 0 | CO25: 0 | CP25: 0 | CQ25: 0 | CR25: 0 | DU25: 376
A26: 21 | B26: Lingg Andrea | I26: 0 | J26: 53 | K26: 3 | L26: 75.08333333 | O26: 0 | R26: 0 | U26: 0 | X26: 0 | AA26: 0 | AD26: 0 | AG26: 0 | AJ26: 0 | AM26: 0 | AP26: 0 | AS26: 0 | AV26: 0 | AY26: 0 | BB26: 0 | BE26: 0 | BH26: 0 | BK26: 0 | BM26: 75.08333333 | BN26: 53 | BO26: 21 | BP26: 75.08333333 | BQ26: 8.342592593 | BR26: 75.08333333 | BX26: 1 | BY26: 75.08333333 | BZ26: 0 | CA26: 75.08333333 | CB26: 0 | CC26: 0 | CD26: 0 | CE26: 0 | CF26: 0 | CG26: 0 | CH26: 0 | CI26: 0 | CJ26: 0 | CK26: 0 | CL26: 0 | CM26: 0 | CN26: 0 | CO26: 0 | CP26: 0 | CQ26: 0 | CR26: 0 | DO26: 353
A27: 22 | B27: Vogel Silas | I27: 0 | L27: 0 | O27: 0 | R27: 0 | U27: 0 | X27: 0 | AA27: 0 | AD27: 0 | AG27: 0 | AJ27: 0 | AM27: 0 | AP27: 0 | AQ27: 73 | AR27: 3 | AS27: 74.46 | AV27: 0 | AY27: 0 | BB27: 0 | BE27: 0 | BH27: 0 | BK27: 0 | BM27: 74.46 | BN27: 73 | BO27: 22 | BP27: 74.46 | BQ27: 8.273333333 | BR27: 74.46 | BX27: 1 | BY27: 74.46 | BZ27: 0 | CA27: 0 | CB27: 0 | CC27: 0 | CD27: 0 | CE27: 0 | CF27: 0 | CG27: 0 | CH27: 0 | CI27: 0 | CJ27: 0 | CK27: 0 | CL27: 74.46 | CM27: 0 | CN27: 0 | CO27: 0 | CP27: 0 | CQ27: 0 | CR27: 0 | EV27: 373
A28: 23 | B28: Elmiger Kai | I28: 0 | L28: 0 | O28: 0 | R28: 0 | U28: 0 | X28: 0 | AA28: 0 | AD28: 0 | AG28: 0 | AJ28: 0 | AM28: 0 | AN28: 69 | AO28: 3 | AP28: 70.38 | AS28: 0 | AV28: 0 | AY28: 0 | BB28: 0 | BE28: 0 | BH28: 0 | BK28: 0 | BM28: 70.38 | BN28: 69 | BO28: 23 | BP28: 70.38 | BQ28: 7.82 | BR28: 70.38 | BX28: 1 | BY28: 70.38 | BZ28: 0 | CA28: 0 | CB28: 0 | CC28: 0 | CD28: 0 | CE28: 0 | CF28: 0 | CG28: 0 | CH28: 0 | CI28: 0 | CJ28: 0 | CK28: 70.38 | CL28: 0 | CM28: 0 | CN28: 0 | CO28: 0 | CP28: 0 | CQ28: 0 | CR28: 0 | ES28: 369
A29: 24 | B29: Ries Hans | I29: 0 | J29: 35 | K29: 4 | L29: 50.55555556 | O29: 0 | R29: 0 | U29: 0 | X29: 0 | AA29: 0 | AD29: 0 | AG29: 0 | AJ29: 0 | AM29: 0 | AP29: 0 | AS29: 0 | AV29: 0 | AY29: 0 | BB29: 0 | BE29: 0 | BH29: 0 | BK29: 0 | BM29: 50.55555556 | BN29: 35 | BO29: 24 | BP29: 50.55555556 | BQ29: 5.617283951 | BR29: 50.55555556 | BX29: 1 | BY29: 50.55555556 | BZ29: 0 | CA29: 50.55555556 | CB29: 0 | CC29: 0 | CD29: 0 | CE29: 0 | CF29: 0 | CG29: 0 | CH29: 0 | CI29: 0 | CJ29: 0 | CK29: 0 | CL29: 0 | CM29: 0 | CN29: 0 | CO29: 0 | CP29: 0 | CQ29: 0 | CR29: 0 | DO29: 435
A30: 25 | B30: Mathis Romy | I30: 0 | L30: 0 | O30: 0 | R30: 0 | U30: 0 | X30: 0 | AA30: 0 | AD30: 0 | AG30: 0 | AJ30: 0 | AM30: 0 | AP30: 0 | AS30: 0 | AV30: 0 | AY30: 0 | BB30: 0 | BE30: 0 | BH30: 0 | BK30: 0 | BM30: 0 | BN30: 0 | BO30: 25 | BP30: 0 | BQ30: 0 | BX30: 0 | BY30: 0 | BZ30: 0 | CA30: 0 | CB30: 0 | CC30: 0 | CD30: 0 | CE30: 0 | CF30: 0 | CG30: 0 | CH30: 0 | CI30: 0 | CJ30: 0 | CK30: 0 | CL30: 0 | CM30: 0 | CN30: 0 | CO30: 0 | CP30: 0 | CQ30: 0 | CR30: 0
H31: 1=Standard, 2=Stgw57/03, 3=Kar.+90er, 4=Stgw57/02 | BO31: Zur Jahresmeisterschaft zählen die besten | BP31: =BP1 -> 9 | BQ31: Schiessen
B34: IKII
B35: phs | F35: 1=Standard, 2=Stgw57/03, 3=Kar.+90er, 4=Stgw57/02
I37: Cup oder Endschiessen | L37: Grenzschutzschiessen | O37: Sparbligschiessen | R37: Kant. Schützenfest | U37: Bezirksverbandschiessen | X37: Ob.frickt.Verb.Schiessen | AA37: Frickerbergschiessen | AD37: Eichwaldschiessen | AG37: Obligatorisch | AJ37: Feldschiessen | AM37: Einz.Gruppensch. | AP37: Habsburgerschiessen

Sheet Auswertung (hidden)
H4: 1 | I4: 2 | J4: 3 | K4: 4 | L4: 5 | M4: 6 | N4: 7 | O4: 8 | P4: 9 | Q4: 10 | R4: 11 | S4: 12 | T4: 13 | U4: 14 | V4: 15 | W4: 16 | X4: 17 | Y4: 18 | Z4: 19 | AA4: 20 | BG4: Anz. Zählresultate
B6: =Eiken!B6 -> Gisiger Alfons | G6: 1 | H6: 102.353 | I6: 104.353 | J6: 104.353 | K6: 104.353 | L6: 91 | M6: 90 | N6: 104.353 | O6: 81 | P6: 104.353 | Q6: 81 | R6: 97.6 | S6: 104.353 | Z6: =SUM(H6:Y6) -> 1169.071 | AA6: =LARGE($H6:$Y6,1)+LARGE($H6:$Y6,2)+LARGE($H6:$Y6,3)+LARGE($H6:$Y6,4)+LARGE($H6:$Y6,5)+LARGE($H6:$Y6,6)+LARGE($H6:$Y6,7)+LARGE($H6:$Y6,8)+LARGE($H6:$Y6,9) -> 917.071 | AB6: =RANK(AA6,AA$36:AA$60,0) ->  | AC6: =SUM(H6:Y6) -> 1169.071 | AT6: 4 | BG6: =LARGE($H6:$AA6,1)+LARGE($H6:$AA6,2)+LARGE($H6:$AA6,3)+LARGE($H6:$AA6,4) -> 2294.848
B7: =Eiken!B7 -> Leubin Othmar | H7: 90 | I7: 90 | J7: 104.353 | K7: 104.353 | L7: 99 | M7: 91 | N7: 90 | O7: 82.6 | Q7: 90.3 | R7: 94 | Z7: 935.606 | AA7: 853.006 | AC7: 935.606 | AT7: 5 | BG7: =LARGE($H7:$AA7,1)+LARGE($H7:$AA7,2)+LARGE($H7:$AA7,3)+LARGE($H7:$AA7,4) -> 1997.318
B8: =Eiken!B8 -> Ruflin Felix | G8: 4 | H8: 99 | J8: 104.353 | K8: 104.353 | L8: 83 | M8: 104.353 | O8: 83 | Q8: 83 | R8: 95.3 | S8: 83.7 | Z8: 840.059 | AA8: 840.059 | AC8: 840.059 | AT8: 6 | BG8: =LARGE($H8:$AA8,1)+LARGE($H8:$AA8,2)+LARGE($H8:$AA8,3)+LARGE($H8:$AA8,4) -> 1888.824
B9: =Eiken!B9 -> Buser Dario | G9: 2 | H9: 90 | I9: 90 | J9: 104.353 | K9: 104.353 | L9: 83 | M9: 80 | O9: 89 | P9: 90 | Q9: 89 | R9: 86.7 | Z9: 906.406 | AA9: 826.406 | AC9: 906.406 | AT9: 7 | BG9: 1941.518
B10: =Eiken!B10 -> Kalt Kurt | H10: 90 | I10: 88 | J10: 97 | K10: 78 | L10: 84 | M10: 92 | O10: 94.2 | P10: 90 | Q10: 93 | S10: 98 | Z10: 904.2 | AA10: 826.2 | AC10: 904.2 | AT10: 8 | BG10: 1925.4
B11: =Eiken!B11 -> Karaboyun Murat | H11: 100 | I11: 90 | J11: 89 | K11: 94 | L11: 83 | M11: 92 | O11: 97 | P11: 90 | Q11: 91 | Z11: 826 | AA11: 826 | AC11: 826 | AT11: 9 | BG11: 1849
B12: =Eiken!B12 -> Buser Marcel | H12: 100 | I12: 90 | J12: 104.353 | K12: 96 | L12: 72 | M12: 89 | O12: 83 | Q12: 88 | R12: 93.6 | Z12: 815.953 | AA12: 815.953 | AC12: 815.953 | AT12: 10 | BG12: 1836.259
B13: =Eiken!B13 -> Eugster Josef | H13: 90 | J13: 90 | K13: 96 | L13: 96 | M13: 81 | N13: 90 | O13: 89.9 | Q13: 94 | S13: 88 | Z13: 814.9 | AA13: 814.9 | AC13: 814.9 | AT13: 11 | BG13: 1821.8
B14: =Eiken!B14 -> Ries Benjamin | H14: 90 | J14: 104.353 | K14: 97 | L14: 83 | M14: 88 | N14: 90 | O14: 81 | Q14: 83 | R14: 94.5 | Z14: 810.853 | AA14: 810.853 | AC14: 810.853 | AT14: 12 | BG14: 1823.059
B15: =Eiken!B15 -> Ilkic Thomas | H15: 99 | J15: 104.353 | K15: 90 | L15: 90 | M15: 83 | N15: 90 | O15: 81.6 | Q15: 80.6 | R15: 92 | Z15: 810.553 | AA15: 810.553 | AC15: 810.553 | AT15: 13 | BG15: 1824.459
B16: =Eiken!B16 -> Elmiger Jan | H16: 80 | I16: 85 | J16: 86 | K16: 84 | L16: 83 | M16: 83 | N16: 83 | O16: 81 | P16: 90 | Q16: 86 | R16: 90 | S16: 104.353 | Z16: 1035.353 | AA16: 791.353 | AC16: 1035.353 | AT16: 14 | BG16: 2021.059
B17: =Eiken!B17 -> Krätz Ruedi | H17: 90 | J17: 104.353 | K17: 91 | L17: 81 | M17: 61 | O17: 84.4 | P17: 90 | Q17: 89.4 | R17: 93.4 | Z17: 784.553 | AA17: 784.553 | AC17: 784.553 | AT17: 15 | BG17: 1766.859
B18: =Eiken!B18 -> Stocker Georg | H18: 90 | J18: 104.353 | K18: 83 | L18: 94 | M18: 83 | O18: 70.9 | P18: 90 | Q18: 84 | R18: 77.7 | Z18: 776.953 | AA18: 776.953 | AC18: 776.953
B19: =Eiken!B19 -> Schmid Dominik | G19: 3 | H19: 90 | I19: 90 | K19: 82 | L19: 85 | M19: 83 | O19: 83 | P19: 90 | Q19: 95 | S19: 78.4 | Z19: 776.4 | AA19: 776.4 | AC19: 776.4
B20: =Eiken!B20 -> Kunz Peter | H20: 90 | I20: 90 | J20: 104.353 | K20: 87 | L20: 82 | M20: 81 | O20: 73 | Q20: 86 | R20: 75.9 | Z20: 769.253 | AA20: 769.253 | AC20: 769.253
B21: =Eiken!B21 -> Elmiger Lars | H21: 90 | J21: 104.353 | K21: 90 | L21: 94 | M21: 62 | O21: 88.5 | Q21: 99 | R21: 90.4 | Z21: 718.253 | AC21: 718.253
B22: =Eiken!B22 -> Dornbierer Caroline | H22: 90 | I22: 90 | J22: 104.353 | K22: 80 | L22: 92 | M22: 84 | O22: 89.9 | Q22: 87 | Z22: 717.253 | AC22: 717.253
B23: =Eiken!B23 -> Senft Michael | H23: 90 | J23: 90 | K23: 90 | L23: 72 | M23: 73 | N23: 90 | O23: 92.5 | Q23: 89 | Z23: 686.5 | AC23: 686.5
B24: =Eiken!B24 -> Gast Esther | H24: 90 | I24: 80 | J24: 86 | K24: 88 | L24: 81 | M24: 72 | O24: 93.6 | Q24: 92 | Z24: 682.6 | AC24: 682.6
B25: =Eiken!B25 -> Vogel Reto | H25: 90 | J25: 90 | K25: 83 | L25: 84 | M25: 84 | O25: 81 | P25: 99 | Q25: 89.4 | Z25: 700.4 | AC25: 700.4
B26: =Eiken!B26 -> Lingg Andrea | H26: 100 | I26: 90 | K26: 91 | L26: 83 | M26: 86 | N26: 90 | O26: 73 | Q26: 88.6 | Z26: 701.6 | AC26: 701.6
B27: =Eiken!B27 -> Vogel Silas | H27: 90 | I27: 83 | J27: 83 | L27: 81 | O27: 98 | P27: 90 | Q27: 80.6 | Z27: 605.6 | AC27: 605.6
B28: =Eiken!B28 -> Elmiger Kai | H28: 90 | J28: 85 | Q28: 90.7 | Z28: 265.7 | AC28: 265.7
B29: =Eiken!B29 -> Ries Hans | H29: 90 | I29: 80 | J29: 85 | Z29: 255 | AC29: 255
AI31: =COUNTA(H34:Y34) -> 12 | AJ31: Anzahl Schiessen
AA32: 7 | AB32: Zählende Schiessen | AI32: =AA32 -> 7 | AJ32: Anzahl zählende Schiessen
H33: 1 | I33: 2 | J33: 3 | K33: 4 | L33: 5 | M33: 6 | N33: 7 | O33: 8 | P33: 9 | Q33: 10 | R33: 11 | S33: 12 | T33: 13 | U33: 14 | V33: 15 | W33: 16 | X33: 17 | Y33: 18
B34: Rang | D34: =TODAY() -> 2020-01-24 | H34: Cup oder Endschiessen | I34: Grenzschutzschiessen | J34: Sparbligschiessen | K34: Kant. Schützenfest | L34: Bezirksverbandschiessen | M34: Ob.frickt.Verb.Schiessen | N34: Frickerbergschiessen | O34: Eichwaldschiessen | P34: Obligatorisch | Q34: Feldschiessen | R34: Einz.Gruppensch. | S34: Habsburgerschiessen | Z34: =AI31 -> 12 | AA34: =AA32 -> 7 | AC34: Totalsumme
H35: % | I35: % | J35: % | K35: % | L35: % | M35: % | N35: % | O35: % | P35: % | Q35: % | R35: % | S35: % | T35: % | U35: % | V35: % | W35: % | X35: % | Y35: %
B36: =AB36 ->  | C36: AA | H36: 95.95 | I36: 95.88 | J36: 94.86 | K36: 94.86 | L36: 98.6 | M36: 98 | N36: 68 | Z36: =SUM(H36:Y36) -> 646.15 | AA36: =LARGE($H36:$Y36,1)+LARGE($H36:$Y36,2)+LARGE($H36:$Y36,3)+LARGE($H36:$Y36,4)+LARGE($H36:$Y36,5)+LARGE($H36:$Y36,6)+LARGE($H36:$Y36,7) -> 646.15 | AB36: =RANK(AA36,AA$36:AA$60,0) ->  | AC36: =SUM(H36:Y36) -> 646.15 | AM36: 4 | AN36: =LARGE($H36:$Y36,1)+LARGE($H36:$Y36,2)+LARGE($H36:$Y36,3)+LARGE($H36:$Y36,4) -> 388.43 | AO36: AN 36
B37: =AB37 ->  | C37: Alphabetisch | H37: 99 | I37: 89 | J37: 99 | K37: 86 | L37: 85 | M37: 78 | N37: 85 | O37: 82 | Z37: 703 | AA37: =LARGE($H37:$Y37,1)+LARGE($H37:$Y37,2)+LARGE($H37:$Y37,3)+LARGE($H37:$Y37,4)+LARGE($H37:$Y37,5)+LARGE($H37:$Y37,6)+LARGE($H37:$Y37,7) -> 625 | AB37: =RANK(AA37,AA$36:AA$60,0) ->  | AC37: =SUM(H37:Y37) -> 703 | AM37: 5 | AN37: =LARGE($H37:$Y37,1)+LARGE($H37:$Y37,2)+LARGE($H37:$Y37,3)+LARGE($H37:$Y37,4)+LARGE($H37:$Y37,5) -> 458 | AO37: AN 37
C38: AAA | G38: 3 | Z38: 0 | AC38: 0 | AM38: 6 | AN38: =LARGE($H38:$Y38,1)+LARGE($H38:$Y38,2)+LARGE($H38:$Y38,3)+LARGE($H38:$Y38,4)+LARGE($H38:$Y38,5)+LARGE($H38:$Y38,6) ->  | AO38: AN 38
C39: Ackermann adrian | Z39: 0 | AC39: 0 | AM39: 7 | AN39: =LARGE($H39:$Y39,1)+LARGE($H39:$Y39,2)+LARGE($H39:$Y39,3)+LARGE($H39:$Y39,4)+LARGE($H39:$Y39,5)+LARGE($H39:$Y39,6)+LARGE($H39:$Y39,7) ->  | AO39: AN 39
C40: Acki | Z40: 0 | AC40: 0 | AM40: 8 | AN40: =LARGE($H40:$Y40,1)+LARGE($H40:$Y40,2)+LARGE($H40:$Y40,3)+LARGE($H40:$Y40,4)+LARGE($H40:$Y40,5)+LARGE($H40:$Y40,6)+LARGE($H40:$Y40,7)+LARGE($H40:$Y40,8) ->  | AO40: AN 40
C41: Bhend Hanspeter | G41: 1 | Z41: 0 | AC41: 0 | AM41: 9 | AN41: =LARGE($H41:$Y41,1)+LARGE($H41:$Y41,2)+LARGE($H41:$Y41,3)+LARGE($H41:$Y41,4)+LARGE($H41:$Y41,5)+LARGE($H41:$Y41,6)+LARGE($H41:$Y41,7)+LARGE($H41:$Y41,8)+LARGE($H41:$Y41,9) ->  | AO41: AN 41
C42: Buser Marcel | G42: 4 | Z42: 0 | AC42: 0 | AM42: 10 | AN42: =LARGE($H42:$Y42,1)+LARGE($H42:$Y42,2)+LARGE($H42:$Y42,3)+LARGE($H42:$Y42,4)+LARGE($H42:$Y42,5)+LARGE($H42:$Y42,6)+LARGE($H42:$Y42,7)+LARGE($H42:$Y42,8)+LARGE($H42:$Y42,9)+LARGE($H42:$Y42,10) ->  | AO42: AN 42
C43: Buser Sven | G43: 2 | Z43: 0 | AC43: 0 | AM43: 11 | AN43: =LARGE($H43:$Y43,1)+LARGE($H43:$Y43,2)+LARGE($H43:$Y43,3)+LARGE($H43:$Y43,4)+LARGE($H43:$Y43,5)+LARGE($H43:$Y43,6)+LARGE($H43:$Y43,7)+LARGE($H43:$Y43,8)+LARGE($H43:$Y43,9)+LARGE($H43:$Y43,10)+LARGE($H43:$Y43,11) ->  | AO43: AN 43
C44: Dinkel Bruno | Z44: 0 | AC44: 0 | AM44: 12 | AN44: =LARGE($H44:$Y44,1)+LARGE($H44:$Y44,2)+LARGE($H44:$Y44,3)+LARGE($H44:$Y44,4)+LARGE($H44:$Y44,5)+LARGE($H44:$Y44,6)+LARGE($H44:$Y44,7)+LARGE($H44:$Y44,8)+LARGE($H44:$Y44,9)+LARGE($H44:$Y44,10)+LARGE($H44:$Y44,11)+LARGE($H44:$Y44,12) ->  | AO44: AN 44
C45: Dornbierer Caroline | Z45: 0 | AC45: 0 | AM45: 13 | AN45: =LARGE($H45:$Y45,1)+LARGE($H45:$Y45,2)+LARGE($H45:$Y45,3)+LARGE($H45:$Y45,4)+LARGE($H45:$Y45,5)+LARGE($H45:$Y45,6)+LARGE($H45:$Y45,7)+LARGE($H45:$Y45,8)+LARGE($H45:$Y45,9)+LARGE($H45:$Y45,10)+LARGE($H45:$Y45,11)+LARGE($H45:$Y45,12)+LARGE($H45:$Y45,13) ->  | AO45: AN 45
C46: Elmiger Jan | Z46: 0 | AC46: 0 | AM46: 14 | AN46: =LARGE($H46:$Y46,1)+LARGE($H46:$Y46,2)+LARGE($H46:$Y46,3)+LARGE($H46:$Y46,4)+LARGE($H46:$Y46,5)+LARGE($H46:$Y46,6)+LARGE($H46:$Y46,7)+LARGE($H46:$Y46,8)+LARGE($H46:$Y46,9)+LARGE($H46:$Y46,10)+LARGE($H46:$Y46,11)+LARGE($H46:$Y46,12)+LARGE($H46:$Y46,13)+LARGE($H46:$Y46,14) ->  | AO46: AN 46
C47: Eugster Josef | Z47: 0 | AC47: 0 | AM47: 15 | AN47: =LARGE($H47:$Y47,1)+LARGE($H47:$Y47,2)+LARGE($H47:$Y47,3)+LARGE($H47:$Y47,4)+LARGE($H47:$Y47,5)+LARGE($H47:$Y47,6)+LARGE($H47:$Y47,7)+LARGE($H47:$Y47,8)+LARGE($H47:$Y47,9)+LARGE($H47:$Y47,10)+LARGE($H47:$Y47,11)+LARGE($H47:$Y47,12)+LARGE($H47:$Y47,13)+LARGE($H47:$Y47,14)+LARGE($H47:$Y47,15) ->  | AO47: AN 47
C48: Gisiger Alfons | Z48: 0 | AC48: 0 | AM48: 16 | AN48: =LARGE($H48:$Y48,1)+LARGE($H48:$Y48,2)+LARGE($H48:$Y48,3)+LARGE($H48:$Y48,4)+LARGE($H48:$Y48,5)+LARGE($H48:$Y48,6)+LARGE($H48:$Y48,7)+LARGE($H48:$Y48,8)+LARGE($H48:$Y48,9)+LARGE($H48:$Y48,10)+LARGE($H48:$Y48,11)+LARGE($H48:$Y48,12)+LARGE($H48:$Y48,13)+LARGE($H48:$Y48,14)+LARGE($H48:$Y48,15)+LARGE($H48:$Y48,16) ->  | AO48: AN 48
C49: Kalt Kurt | Z49: 0 | AC49: 0
C50: Karaboyun Murat | Z50: 0 | AC50: 0
C51: Krätz Ruedi | Z51: 0 | AC51: 0
C52: Leubin Othmar | Z52: 0 | AC52: 0
C53: Matthis Romy | Z53: 0 | AC53: 0
C54: Ries Benjamin | Z54: 0 | AC54: 0
C55: Ruflin Felix | Z55: 0 | AC55: 0
C56: Stocker Georg | Z56: 0 | AC56: 0
C57: Tabiadon Claudio | Z57: 0 | AC57: 0
Z58: 0 | AC58: 0
Z59: 0 | AC59: 0
Z60: 0 | AC60: 0

Sheet Umrechnungen (hidden)
A1: pe | C1: Umrechnungstabelle Gewehre 300 m
C3: Stdg. | D3: 1 | E3: 57/03 | F3: 1.01 | G3: 90er/Kar. | H3: 1.02 | I3: 57/02 | J3: 1.04
C4: 1 | D4: % | E4: 2 | F4: % | G4: 3 | H4: % | I4: 4 | J4: %
A5: 100er Stich | E5: 72er Feldschiessen | I5: 85er Obligatorisch | M5: 40er Eichwald | Q5: 60er Bezirksverband | U5: 200/150 EWS
A6: 1 | B6: 100 | C6: =A6&""&B6 -> 1100 | D6: 100 | E6: 2 | F6: 72 | G6: =E6&""&F6 -> 272 | H6: 101 | I6: 2 | J6: 85 | K6: =I6&""&J6 -> 285 | L6: 101 | M6: 1 | N6: 40 | O6: =M6&""&N6 -> 140 | P6: 100 | Q6: 1 | R6: 60 | S6: =Q6&""&R6 -> 160 | T6: 100 | U6: 1 | V6: 200 | W6: =U6&""&V6 -> 1200 | X6: 100
A7: 1 | B7: 99 | C7: =A7&""&B7 -> 199 | D7: 99 | E7: 2 | F7: 71 | G7: =E7&""&F7 -> 271 | H7: 99.597 | I7: 2 | J7: 84 | K7: =I7&""&J7 -> 284 | L7: 99.812 | M7: 1 | N7: 39 | O7: =M7&""&N7 -> 139 | P7: 97.5 | Q7: 1 | R7: 59 | S7: =Q7&""&R7 -> 159 | T7: 98.333 | U7: 1 | V7: 199 | W7: =U7&""&V7 -> 1199 | X7: 99.5
A8: 1 | B8: 98 | C8: =A8&""&B8 -> 198 | D8: 98 | E8: 2 | F8: 70 | G8: =E8&""&F8 -> 270 | H8: 98.194 | I8: 2 | J8: 83 | K8: 283 | L8: 98.624 | M8: 1 | N8: 38 | O8: 138 | P8: 95 | Q8: 1 | R8: 58 | S8: 158 | T8: 96.667 | U8: 1 | V8: 198 | W8: 1198 | X8: 99
A9: 1 | B9: 97 | C9: =A9&""&B9 -> 197 | D9: 97 | E9: 2 | F9: 69 | G9: 269 | H9: 96.792 | I9: 2 | J9: 82 | K9: 282 | L9: 97.435 | M9: 1 | N9: 37 | O9: 137 | P9: 92.5 | Q9: 1 | R9: 57 | S9: 157 | T9: 95 | U9: 1 | V9: 197 | W9: 1197 | X9: 98.5
A10: 1 | B10: 96 | C10: =A10&""&B10 -> 196 | D10: 96 | E10: 2 | F10: 68 | G10: 268 | H10: 95.389 | I10: 2 | J10: 81 | K10: 281 | L10: 96.247 | M10: 1 | N10: 36 | O10: 136 | P10: 90 | Q10: 1 | R10: 56 | S10: 156 | T10: 93.333 | U10: 1 | V10: 196 | W10: 1196 | X10: 98
A11: 1 | B11: 95 | C11: 195 | D11: 95 | E11: 2 | F11: 67 | G11: 267 | H11: 93.986 | I11: 2 | J11: 80 | K11: 280 | L11: 95.059 | M11: 1 | N11: 35 | O11: 135 | P11: 87.5 | Q11: 1 | R11: 55 | S11: 155 | T11: 91.667 | U11: 1 | V11: 195 | W11: 1195 | X11: 97.5
A12: 1 | B12: 94 | C12: 194 | D12: 94 | E12: 2 | F12: 66 | G12: 266 | H12: 92.583 | I12: 2 | J12: 79 | K12: 279 | L12: 93.871 | M12: 1 | N12: 34 | O12: 134 | P12: 85 | Q12: 1 | R12: 54 | S12: 154 | T12: 90 | U12: 1 | V12: 194 | W12: 1194 | X12: 97
A13: 1 | B13: 93 | C13: 193 | D13: 93 | E13: 2 | F13: 65 | G13: 265 | H13: 91.181 | I13: 2 | J13: 78 | K13: 278 | L13: 92.682 | M13: 1 | N13: 33 | O13: 133 | P13: 82.5 | Q13: 1 | R13: 53 | S13: 153 | T13: 88.333 | U13: 1 | V13: 193 | W13: 1193 | X13: 96.5
A14: 1 | B14: 92 | C14: 192 | D14: 92 | E14: 2 | F14: 64 | G14: 264 | H14: 89.778 | I14: 2 | J14: 77 | K14: 277 | L14: 91.494 | M14: 1 | N14: 32 | O14: 132 | P14: 80 | Q14: 1 | R14: 52 | S14: 152 | T14: 86.667 | U14: 1 | V14: 192 | W14: 1192 | X14: 96
A15: 1 | B15: 91 | C15: 191 | D15: 91 | E15: 2 | F15: 63 | G15: 263 | H15: 88.375 | I15: 2 | J15: 76 | K15: 276 | L15: 90.306 | M15: 1 | N15: 31 | O15: 131 | P15: 77.5 | Q15: 1 | R15: 51 | S15: 151 | T15: 85 | U15: 1 | V15: 191 | W15: 1191 | X15: 95.5
A16: 1 | B16: 90 | C16: 190 | D16: 90 | E16: 2 | F16: 62 | G16: 262 | H16: 86.972 | I16: 2 | J16: 75 | K16: 275 | L16: 89.118 | M16: 1 | N16: 30 | O16: 130 | P16: 75 | Q16: 1 | R16: 50 | S16: 150 | T16: 83.333 | U16: 1 | V16: 190 | W16: 1190 | X16: 95
A17: 1 | B17: 89 | C17: 189 | D17: 89 | E17: 2 | F17: 61 | G17: 261 | H17: 85.569 | I17: 2 | J17: 74 | K17: 274 | L17: 87.929 | M17: 1 | N17: 29 | O17: 129 | P17: 72.5 | Q17: 1 | R17: 49 | S17: 149 | T17: 81.667 | U17: 1 | V17: 189 | W17: 1189 | X17: 94.5
A18: 1 | B18: 88 | C18: 188 | D18: 88 | E18: 2 | F18: 60 | G18: 260 | H18: 84.167 | I18: 2 | J18: 73 | K18: 273 | L18: 86.741 | M18: 1 | N18: 28 | O18: 128 | P18: 70 | Q18: 1 | R18: 48 | S18: 148 | T18: 80 | U18: 1 | V18: 188 | W18: 1188 | X18: 94
A19: 1 | B19: 87 | C19: 187 | D19: 87 | E19: 2 | F19: 59 | G19: 259 | H19: 82.764 | I19: 2 | J19: 72 | K19: 272 | L19: 85.553 | M19: 1 | N19: 27 | O19: 127 | P19: 67.5 | Q19: 1 | R19: 47 | S19: 147 | T19: 78.333 | U19: 1 | V19: 187 | W19: 1187 | X19: 93.5
A20: 1 | B20: 86 | C20: 186 | D20: 86 | E20: 2 | F20: 58 | G20: 258 | H20: 81.361 | I20: 2 | J20: 71 | K20: 271 | L20: 84.365 | M20: 1 | N20: 26 | O20: 126 | P20: 65 | Q20: 1 | R20: 46 | S20: 146 | T20: 76.667 | U20: 1 | V20: 186 | W20: 1186 | X20: 93
A21: 1 | B21: 85 | C21: 185 | D21: 85 | E21: 2 | F21: 57 | G21: 257 | H21: 79.958 | I21: 2 | J21: 70 | K21: 270 | L21: 83.176 | M21: 1 | N21: 25 | O21: 125 | P21: 62.5 | Q21: 1 | R21: 45 | S21: 145 | T21: 75 | U21: 1 | V21: 185 | W21: 1185 | X21: 92.5
A22: 1 | B22: 84 | C22: 184 | D22: 84 | E22: 2 | F22: 56 | G22: 256 | H22: 78.556 | I22: 2 | J22: 69 | K22: 269 | L22: 81.988 | M22: 1 | N22: 24 | O22: 124 | P22: 60 | Q22: 1 | R22: 44 | S22: 144 | T22: 73.333 | U22: 1 | V22: 184 | W22: 1184 | X22: 92
A23: 1 | B23: 83 | C23: 183 | D23: 83 | E23: 2 | F23: 55 | G23: 255 | H23: 77.153 | I23: 2 | J23: 68 | K23: 268 | L23: 80.8 | M23: 1 | N23: 23 | O23: 123 | P23: 57.5 | Q23: 1 | R23: 43 | S23: 143 | T23: 71.667 | U23: 1 | V23: 183 | W23: 1183 | X23: 91.5
A24: 1 | B24: 82 | C24: 182 | D24: 82 | E24: 2 | F24: 54 | G24: 254 | H24: 75.75 | I24: 2 | J24: 67 | K24: 267 | L24: 79.612 | M24: 1 | N24: 22 | O24: 122 | P24: 55 | Q24: 1 | R24: 42 | S24: 142 | T24: 70 | U24: 1 | V24: 182 | W24: 1182 | X24: 91
A25: 1 | B25: 81 | C25: 181 | D25: 81 | E25: 2 | F25: 53 | G25: 253 | H25: 74.347 | I25: 2 | J25: 66 | K25: 266 | L25: 78.424 | M25: 1 | N25: 21 | O25: 121 | P25: 52.5 | Q25: 1 | R25: 41 | S25: 141 | T25: 68.333 | U25: 1 | V25: 181 | W25: 1181 | X25: 90.5
A26: 1 | B26: 80 | C26: 180 | D26: 80 | E26: 2 | F26: 52 | G26: 252 | H26: 72.944 | I26: 2 | J26: 65 | K26: 265 | L26: 77.235 | M26: 1 | N26: 20 | O26: 120 | P26: 50 | Q26: 1 | R26: 40 | S26: 140 | T26: 66.667 | U26: 1 | V26: 180 | W26: 1180 | X26: 90
A27: 1 | B27: 79 | C27: 179 | D27: 79 | E27: 2 | F27: 51 | G27: 251 | H27: 71.542 | I27: 2 | J27: 64 | K27: 264 | L27: 76.047 | M27: 1 | N27: 19 | O27: 119 | P27: 47.5 | Q27: 1 | R27: 39 | S27: 139 | T27: 65 | U27: 1 | V27: 179 | W27: 1179 | X27: 89.5
A28: 1 | B28: 78 | C28: 178 | D28: 78 | E28: 2 | F28: 50 | G28: 250 | H28: 70.139 | I28: 2 | J28: 63 | K28: 263 | L28: 74.859 | M28: 1 | N28: 18 | O28: 118 | P28: 45 | Q28: 1 | R28: 38 | S28: 138 | T28: 63.333 | U28: 1 | V28: 178 | W28: 1178 | X28: 89
A29: 1 | B29: 77 | C29: 177 | D29: 77 | E29: 2 | F29: 49 | G29: 249 | H29: 68.736 | I29: 2 | J29: 62 | K29: 262 | L29: 73.671 | M29: 1 | N29: 17 | O29: 117 | P29: 42.5 | Q29: 1 | R29: 37 | S29: 137 | T29: 61.667 | U29: 1 | V29: 177 | W29: 1177 | X29: 88.5
A30: 1 | B30: 76 | C30: 176 | D30: 76 | E30: 2 | F30: 48 | G30: 248 | H30: 67.333 | I30: 2 | J30: 61 | K30: 261 | L30: 72.482 | M30: 1 | N30: 16 | O30: 116 | P30: 40 | Q30: 1 | R30: 36 | S30: 136 | T30: 60 | U30: 1 | V30: 176 | W30: 1176 | X30: 88
A31: 1 | B31: 75 | C31: 175 | D31: 75 | E31: 2 | F31: 47 | G31: 247 | H31: 65.931 | I31: 2 | J31: 60 | K31: 260 | L31: 71.294 | M31: 1 | N31: 15 | O31: 115 | P31: 37.5 | Q31: 1 | R31: 35 | S31: 135 | T31: 58.333 | U31: 1 | V31: 175 | W31: 1175 | X31: 87.5
A32: 1 | B32: 74 | C32: 174 | D32: 74 | E32: 2 | F32: 46 | G32: 246 | H32: 64.528 | I32: 2 | J32: 59 | K32: 259 | L32: 70.106 | M32: 1 | N32: 14 | O32: 114 | P32: 35 | Q32: 1 | R32: 34 | S32: 134 | T32: 56.667 | U32: 1 | V32: 174 | W32: 1174 | X32: 87
A33: 1 | B33: 73 | C33: 173 | D33: 73 | E33: 2 | F33: 45 | G33: 245 | H33: 63.125 | I33: 2 | J33: 58 | K33: 258 | L33: 68.918 | M33: 1 | N33: 13 | O33: 113 | P33: 32.5 | Q33: 1 | R33: 33 | S33: 133 | T33: 55 | U33: 1 | V33: 173 | W33: 1173 | X33: 86.5
A34: 1 | B34: 72 | C34: 172 | D34: 72 | E34: 2 | F34: 44 | G34: 244 | H34: 61.722 | I34: 2 | J34: 57 | K34: 257 | L34: 67.729 | M34: 1 | N34: 12 | O34: 112 | P34: 30 | Q34: 1 | R34: 32 | S34: 132 | T34: 53.333 | U34: 1 | V34: 172 | W34: 1172 | X34: 86
A35: 1 | B35: 71 | C35: 171 | D35: 71 | E35: 2 | F35: 43 | G35: 243 | H35: 60.319 | I35: 2 | J35: 56 | K35: 256 | L35: 66.541 | M35: 1 | N35: 11 | O35: 111 | P35: 27.5 | Q35: 1 | R35: 31 | S35: 131 | T35: 51.667 | U35: 1 | V35: 171 | W35: 1171 | X35: 85.5
A36: 1 | B36: 70 | C36: 170 | D36: 70 | E36: 2 | F36: 42 | G36: 242 | H36: 58.917 | I36: 2 | J36: 55 | K36: 255 | L36: 65.353 | M36: 1 | N36: 10 | O36: 110 | P36: 25 | Q36: 1 | R36: 30 | S36: 130 | T36: 50 | U36: 1 | V36: 170 | W36: 1170 | X36: 85
A37: 1 | B37: 69 | C37: 169 | D37: 69 | E37: 2 | F37: 41 | G37: 241 | H37: 57.51386111 | I37: 2 | J37: 54 | K37: 254 | L37: 64.1646 | M37: 2 | N37: 40 | O37: 240 | P37: 101 | Q37: 2 | R37: 60 | S37: 260 | T37: 101 | U37: 1 | V37: 169 | W37: 1169 | X37: 84.5
A38: 1 | B38: 68 | C38: 168 | D38: 68 | E38: 2 | F38: 40 | G38: 240 | H38: 56.11107778 | I38: 2 | J38: 53 | K38: 253 | L38: 62.97634545 | M38: 2 | N38: 39 | O38: 239 | P38: 98.475 | Q38: 2 | R38: 59 | S38: 259 | T38: 99.317 | U38: 1 | V38: 168 | W38: 1168 | X38: 84
A39: 1 | B39: 67 | C39: 167 | D39: 67 | E39: 2 | F39: 39 | G39: 239 | H39: 54.70829444 | I39: 2 | J39: 52 | K39: 252 | L39: 61.78809091 | M39: 2 | N39: 38 | O39: 238 | P39: 95.95 | Q39: 2 | R39: 58 | S39: 258 | T39: 97.633 | U39: 1 | V39: 167 | W39: 1167 | X39: 83.5
A40: 1 | B40: 66 | C40: 166 | D40: 66 | E40: 2 | F40: 38 | G40: 238 | H40: 53.30551111 | I40: 2 | J40: 51 | K40: 251 | L40: 60.59983636 | M40: 2 | N40: 37 | O40: 237 | P40: 93.425 | Q40: 2 | R40: 57 | S40: 257 | T40: 95.95 | U40: 1 | V40: 166 | W40: 1166 | X40: 83
A41: 1 | B41: 65 | C41: 165 | D41: 65 | E41: 2 | F41: 37 | G41: 237 | H41: 51.90272778 | I41: 2 | J41: 50 | K41: 250 | L41: 59.41158182 | M41: 2 | N41: 36 | O41: 236 | P41: 90.9 | Q41: 2 | R41: 56 | S41: 256 | T41: 94.267 | U41: 1 | V41: 165 | W41: 1165 | X41: 82.5
A42: 1 | B42: 64 | C42: 164 | D42: 64 | E42: 2 | F42: 36 | G42: 236 | H42: 50.49994444 | I42: 2 | J42: 49 | K42: 249 | L42: 58.22332727 | M42: 2 | N42: 35 | O42: 235 | P42: 88.375 | Q42: 2 | R42: 55 | S42: 255 | T42: 92.583 | U42: 1 | V42: 164 | W42: 1164 | X42: 82
A43: 1 | B43: 63 | C43: 163 | D43: 63 | E43: 2 | F43: 35 | G43: =E43&""&F43 -> 235 | H43: 49.09721726 | I43: 2 | J43: 48 | K43: 248 | L43: 57.03507273 | M43: 2 | N43: 34 | O43: 234 | P43: 85.85 | Q43: 2 | R43: 54 | S43: 254 | T43: 90.9 | U43: 1 | V43: 163 | W43: 1163 | X43: 81.5
A44: 1 | B44: 62 | C44: 162 | D44: 62 | E44: 2 | F44: 34 | G44: 234 | H44: 47.69444841 | I44: 2 | J44: 47 | K44: 247 | L44: 55.84681818 | M44: 2 | N44: 33 | O44: 233 | P44: 83.325 | Q44: 2 | R44: 53 | S44: 253 | T44: 89.217 | U44: 1 | V44: 162 | W44: 1162 | X44: 81
A45: 1 | B45: 61 | C45: 161 | D45: 61 | E45: 2 | F45: 33 | G45: 233 | H45: 46.29167956 | I45: 2 | J45: 46 | K45: 246 | L45: 54.65856364 | M45: 2 | N45: 32 | O45: 232 | P45: 80.8 | Q45: 2 | R45: 52 | S45: 252 | T45: 87.533 | U45: 1 | V45: 161 | W45: 1161 | X45: 80.5
A46: 1 | B46: 60 | C46: 160 | D46: 60 | E46: 2 | F46: 32 | G46: 232 | H46: 44.88891071 | I46: 2 | J46: 45 | K46: 245 | L46: 53.47030909 | M46: 2 | N46: 31 | O46: 231 | P46: 78.275 | Q46: 2 | R46: 51 | S46: 251 | T46: 85.85 | U46: 1 | V46: 160 | W46: 1160 | X46: 80
A47: 1 | B47: 59 | C47: 159 | D47: 59 | E47: 2 | F47: 31 | G47: 231 | H47: 43.48614187 | I47: 2 | J47: 44 | K47: 244 | L47: 52.28205455 | M47: 2 | N47: 30 | O47: 230 | P47: 75.75 | Q47: 2 | R47: 50 | S47: 250 | T47: 84.167 | U47: 1 | V47: 159 | W47: 1159 | X47: 79.5
A48: 1 | B48: 58 | C48: 158 | D48: 58 | E48: 2 | F48: 30 | G48: 230 | H48: 42.08337302 | I48: 2 | J48: 43 | K48: 243 | L48: 51.0938 | M48: 2 | N48: 29 | O48: 229 | P48: 73.225 | Q48: 2 | R48: 49 | S48: 249 | T48: 82.483 | U48: 1 | V48: 158 | W48: 1158 | X48: 79
A49: 1 | B49: 57 | C49: 157 | D49: 57 | E49: 3 | F49: 72 | G49: 372 | H49: 102 | I49: 2 | J49: 42 | K49: 242 | L49: 49.90554545 | M49: 2 | N49: 28 | O49: 228 | P49: 70.7 | Q49: 2 | R49: 48 | S49: 248 | T49: 80.8 | U49: 1 | V49: 157 | W49: 1157 | X49: 78.5
A50: 1 | B50: 56 | C50: 156 | D50: 56 | E50: 3 | F50: 71 | G50: 371 | H50: 100.583 | I50: 3 | J50: 85 | K50: 385 | L50: 102 | M50: 2 | N50: 27 | O50: 227 | P50: 68.175 | Q50: 2 | R50: 47 | S50: 247 | T50: 79.117 | U50: 1 | V50: 156 | W50: 1156 | X50: 78
A51: 1 | B51: 55 | C51: 155 | D51: 55 | E51: 3 | F51: 70 | G51: 370 | H51: 99.167 | I51: 3 | J51: 84 | K51: 384 | L51: 100.8 | M51: 2 | N51: 26 | O51: 226 | P51: 65.65 | Q51: 2 | R51: 46 | S51: 246 | T51: 77.433 | U51: 1 | V51: 155 | W51: 1155 | X51: 77.5
A52: 1 | B52: 54 | C52: 154 | D52: 54 | E52: 3 | F52: 69 | G52: 369 | H52: 97.75 | I52: 3 | J52: 83 | K52: 383 | L52: 99.6 | M52: 2 | N52: 25 | O52: 225 | P52: 63.125 | Q52: 2 | R52: 45 | S52: 245 | T52: 75.75 | U52: 1 | V52: 154 | W52: 1154 | X52: 77
A53: 1 | B53: 53 | C53: 153 | D53: 53 | E53: 3 | F53: 68 | G53: 368 | H53: 96.333 | I53: 3 | J53: 82 | K53: 382 | L53: 98.4 | M53: 2 | N53: 24 | O53: 224 | P53: 60.6 | Q53: 2 | R53: 44 | S53: 244 | T53: 74.067 | U53: 1 | V53: 153 | W53: 1153 | X53: 76.5
A54: 1 | B54: 52 | C54: 152 | D54: 52 | E54: 3 | F54: 67 | G54: 367 | H54: 94.917 | I54: 3 | J54: 81 | K54: 381 | L54: 97.2 | M54: 2 | N54: 23 | O54: 223 | P54: 58.075 | Q54: 2 | R54: 43 | S54: 243 | T54: 72.383 | U54: 1 | V54: 152 | W54: 1152 | X54: 76
A55: 1 | B55: 51 | C55: 151 | D55: 51 | E55: 3 | F55: 66 | G55: 366 | H55: 93.5 | I55: 3 | J55: 80 | K55: 380 | L55: 96 | M55: 2 | N55: 22 | O55: 222 | P55: 55.55 | Q55: 2 | R55: 42 | S55: 242 | T55: 70.7 | U55: 1 | V55: 151 | W55: 1151 | X55: 75.5
A56: 1 | B56: 50 | C56: 150 | D56: 50 | E56: 3 | F56: 65 | G56: 365 | H56: 92.083 | I56: 3 | J56: 79 | K56: 379 | L56: 94.8 | M56: 2 | N56: 21 | O56: 221 | P56: 53.025 | Q56: 2 | R56: 41 | S56: 241 | T56: 69.017 | U56: 1 | V56: 150 | W56: 1150 | X56: 75
A57: 2 | B57: 100 | C57: =A57&""&B57 -> 2100 | D57: 101 | E57: 3 | F57: 64 | G57: 364 | H57: 90.667 | I57: 3 | J57: 78 | K57: 378 | L57: 93.6 | M57: 2 | N57: 20 | O57: 220 | P57: 50.5 | Q57: 2 | R57: 40 | S57: 240 | T57: 67.333 | U57: 2 | V57: 150 | W57: 2150 | X57: 101
A58: 2 | B58: 99 | C58: =A58&""&B58 -> 299 | D58: 99.99 | E58: 3 | F58: 63 | G58: 363 | H58: 89.25 | I58: 3 | J58: 77 | K58: 377 | L58: 92.4 | M58: 2 | N58: 19 | O58: 219 | P58: 47.975 | Q58: 2 | R58: 39 | S58: 239 | T58: 65.65 | U58: 2 | V58: 149 | W58: 2149 | X58: 100.327
A59: 2 | B59: 98 | C59: =A59&""&B59 -> 298 | D59: 98.98 | E59: 3 | F59: 62 | G59: 362 | H59: 87.833 | I59: 3 | J59: 76 | K59: 376 | L59: 91.2 | M59: 2 | N59: 18 | O59: 218 | P59: 45.45 | Q59: 2 | R59: 38 | S59: 238 | T59: 63.967 | U59: 2 | V59: 148 | W59: 2148 | X59: 99.653
A60: 2 | B60: 97 | C60: 297 | D60: 97.97 | E60: 3 | F60: 61 | G60: 361 | H60: 86.417 | I60: 3 | J60: 75 | K60: 375 | L60: 90 | M60: 2 | N60: 17 | O60: 217 | P60: 42.925 | Q60: 2 | R60: 37 | S60: 237 | T60: 62.283 | U60: 2 | V60: 147 | W60: 2147 | X60: 98.98
A61: 2 | B61: 96 | C61: 296 | D61: 96.96 | E61: 3 | F61: 60 | G61: 360 | H61: 85 | I61: 3 | J61: 74 | K61: 374 | L61: 88.8 | M61: 2 | N61: 16 | O61: 216 | P61: 40.4 | Q61: 2 | R61: 36 | S61: 236 | T61: 60.6 | U61: 2 | V61: 146 | W61: 2146 | X61: 98.307
A62: 2 | B62: 95 | C62: 295 | D62: 95.95 | E62: 3 | F62: 59 | G62: 359 | H62: 83.583 | I62: 3 | J62: 73 | K62: 373 | L62: 87.6 | M62: 2 | N62: 15 | O62: 215 | P62: 37.875 | Q62: 2 | R62: 35 | S62: 235 | T62: 58.917 | U62: 2 | V62: 145 | W62: 2145 | X62: 97.633
A63: 2 | B63: 94 | C63: 294 | D63: 94.94 | E63: 3 | F63: 58 | G63: 358 | H63: 82.167 | I63: 3 | J63: 72 | K63: 372 | L63: 86.4 | M63: 2 | N63: 14 | O63: 214 | P63: 35.35 | Q63: 2 | R63: 34 | S63: 234 | T63: 57.233 | U63: 2 | V63: 144 | W63: 2144 | X63: 96.96
A64: 2 | B64: 93 | C64: 293 | D64: 93.93 | E64: 3 | F64: 57 | G64: 357 | H64: 80.75 | I64: 3 | J64: 71 | K64: 371 | L64: 85.2 | M64: 2 | N64: 13 | O64: 213 | P64: 32.825 | Q64: 2 | R64: 33 | S64: 233 | T64: 55.55 | U64: 2 | V64: 143 | W64: 2143 | X64: 96.287
A65: 2 | B65: 92 | C65: 292 | D65: 92.92 | E65: 3 | F65: 56 | G65: 356 | H65: 79.333 | I65: 3 | J65: 70 | K65: 370 | L65: 84 | M65: 2 | N65: 12 | O65: 212 | P65: 30.3 | Q65: 2 | R65: 32 | S65: 232 | T65: 53.867 | U65: 2 | V65: 142 | W65: 2142 | X65: 95.613
A66: 2 | B66: 91 | C66: 291 | D66: 91.91 | E66: 3 | F66: 55 | G66: 355 | H66: 77.917 | I66: 3 | J66: 69 | K66: 369 | L66: 82.8 | M66: 2 | N66: 11 | O66: 211 | P66: 27.775 | Q66: 2 | R66: 31 | S66: 231 | T66: 52.183 | U66: 2 | V66: 141 | W66: 2141 | X66: 94.94
A67: 2 | B67: 90 | C67: 290 | D67: 90.9 | E67: 3 | F67: 54 | G67: 354 | H67: 76.5 | I67: 3 | J67: 68 | K67: 368 | L67: 81.6 | M67: 2 | N67: 10 | O67: 210 | P67: 25.25 | Q67: 2 | R67: 30 | S67: 230 | T67: 50.5 | U67: 2 | V67: 140 | W67: 2140 | X67: 94.267
A68: 2 | B68: 89 | C68: 289 | D68: 89.89 | E68: 3 | F68: 53 | G68: 353 | H68: 75.083 | I68: 3 | J68: 67 | K68: 367 | L68: 80.4 | M68: 3 | N68: 40 | O68: 340 | P68: 102 | Q68: 3 | R68: 60 | S68: 360 | T68: 102 | U68: 2 | V68: 139 | W68: 2139 | X68: 93.593
A69: 2 | B69: 88 | C69: 288 | D69: 88.88 | E69: 3 | F69: 52 | G69: 352 | H69: 73.667 | I69: 3 | J69: 66 | K69: 366 | L69: 79.2 | M69: 3 | N69: 39 | O69: 339 | P69: 99.45 | Q69: 3 | R69: 59 | S69: 359 | T69: 100.3 | U69: 2 | V69: 138 | W69: 2138 | X69: 92.92
A70: 2 | B70: 87 | C70: 287 | D70: 87.87 | E70: 3 | F70: 51 | G70: 351 | H70: 72.25 | I70: 3 | J70: 65 | K70: 365 | L70: 78 | M70: 3 | N70: 38 | O70: 338 | P70: 96.9 | Q70: 3 | R70: 58 | S70: 358 | T70: 98.6 | U70: 2 | V70: 137 | W70: 2137 | X70: 92.247
A71: 2 | B71: 86 | C71: 286 | D71: 86.86 | E71: 3 | F71: 50 | G71: 350 | H71: 70.833 | I71: 3 | J71: 64 | K71: =I71&""&J71 -> 364 | L71: 76.8 | M71: 3 | N71: 37 | O71: =M71&""&N71 -> 337 | P71: 94.35 | Q71: 3 | R71: 57 | S71: =Q71&""&R71 -> 357 | T71: 96.9 | U71: 2 | V71: 136 | W71: =U71&""&V71 -> 2136 | X71: 91.573
A72: 2 | B72: 85 | C72: 285 | D72: 85.85 | E72: 3 | F72: 49 | G72: =E72&""&F72 -> 349 | H72: 69.417 | I72: 3 | J72: 63 | K72: 363 | L72: 75.6 | M72: 3 | N72: 36 | O72: 336 | P72: 91.8 | Q72: 3 | R72: 56 | S72: 356 | T72: 95.2 | U72: 2 | V72: 135 | W72: 2135 | X72: 90.9
A73: 2 | B73: 84 | C73: 284 | D73: 84.84 | E73: 3 | F73: 48 | G73: 348 | H73: 68 | I73: 3 | J73: 62 | K73: 362 | L73: 74.4 | M73: 3 | N73: 35 | O73: 335 | P73: 89.25 | Q73: 3 | R73: 55 | S73: 355 | T73: 93.5 | U73: 2 | V73: 134 | W73: 2134 | X73: 90.227
A74: 2 | B74: 83 | C74: 283 | D74: 83.83 | E74: 3 | F74: 47 | G74: 347 | H74: 66.583 | I74: 3 | J74: 61 | K74: 361 | L74: 73.2 | M74: 3 | N74: 34 | O74: 334 | P74: 86.7 | Q74: 3 | R74: 54 | S74: 354 | T74: 91.8 | U74: 2 | V74: 133 | W74: 2133 | X74: 89.553
A75: 2 | B75: 82 | C75: 282 | D75: 82.82 | E75: 3 | F75: 46 | G75: 346 | H75: 65.167 | I75: 3 | J75: 60 | K75: 360 | L75: 72 | M75: 3 | N75: 33 | O75: 333 | P75: 84.15 | Q75: 3 | R75: 53 | S75: 353 | T75: 90.1 | U75: 2 | V75: 132 | W75: 2132 | X75: 88.88
A76: 2 | B76: 81 | C76: 281 | D76: 81.81 | E76: 3 | F76: 45 | G76: 345 | H76: 63.75 | I76: 3 | J76: 59 | K76: 359 | L76: 70.8 | M76: 3 | N76: 32 | O76: 332 | P76: 81.6 | Q76: 3 | R76: 52 | S76: 352 | T76: 88.4 | U76: 2 | V76: 131 | W76: 2131 | X76: 88.207
A77: 2 | B77: 80 | C77: 280 | D77: 80.8 | E77: 3 | F77: 44 | G77: 344 | H77: 62.333 | I77: 3 | J77: 58 | K77: 358 | L77: 69.6 | M77: 3 | N77: 31 | O77: 331 | P77: 79.05 | Q77: 3 | R77: 51 | S77: 351 | T77: 86.7 | U77: 2 | V77: 130 | W77: 2130 | X77: 87.533
A78: 2 | B78: 79 | C78: 279 | D78: 79.79 | E78: 3 | F78: 43 | G78: 343 | H78: 60.917 | I78: 3 | J78: 57 | K78: 357 | L78: 68.4 | M78: 3 | N78: 30 | O78: 330 | P78: 76.5 | Q78: 3 | R78: 50 | S78: 350 | T78: 85 | U78: 2 | V78: 129 | W78: 2129 | X78: 86.86
A79: 2 | B79: 78 | C79: 278 | D79: 78.78 | E79: 3 | F79: 42 | G79: 342 | H79: 59.5 | I79: 3 | J79: 56 | K79: 356 | L79: 67.2 | M79: 3 | N79: 29 | O79: 329 | P79: 73.95 | Q79: 3 | R79: 49 | S79: 349 | T79: 83.3 | U79: 2 | V79: 128 | W79: 2128 | X79: 86.187
A80: 2 | B80: 77 | C80: 277 | D80: 77.77 | E80: 3 | F80: 41 | G80: 341 | H80: 58.08342857 | I80: 3 | J80: 55 | K80: 355 | L80: 66 | M80: 3 | N80: 28 | O80: 328 | P80: 71.4 | Q80: 3 | R80: 48 | S80: 348 | T80: 81.6 | U80: 2 | V80: 127 | W80: 2127 | X80: 85.513
A81: 2 | B81: 76 | C81: 276 | D81: 76.76 | E81: 3 | F81: 40 | G81: 340 | H81: 56.66678571 | I81: 3 | J81: 54 | K81: 354 | L81: 64.8 | M81: 3 | N81: 27 | O81: 327 | P81: 68.85 | Q81: 3 | R81: 47 | S81: 347 | T81: 79.9 | U81: 2 | V81: 126 | W81: 2126 | X81: 84.84
A82: 2 | B82: 75 | C82: 275 | D82: 75.75 | E82: 3 | F82: 39 | G82: 339 | H82: 55.25014286 | I82: 3 | J82: 53 | K82: 353 | L82: 63.6 | M82: 3 | N82: 26 | O82: 326 | P82: 66.3 | Q82: 3 | R82: 46 | S82: 346 | T82: 78.2 | U82: 2 | V82: 125 | W82: 2125 | X82: 84.167
A83: 2 | B83: 74 | C83: 274 | D83: 74.74 | E83: 3 | F83: 38 | G83: 338 | H83: 53.8335 | I83: 3 | J83: 52 | K83: 352 | L83: 62.4 | M83: 3 | N83: 25 | O83: 325 | P83: 63.75 | Q83: 3 | R83: 45 | S83: 345 | T83: 76.5 | U83: 2 | V83: 124 | W83: 2124 | X83: 83.493
A84: 2 | B84: 73 | C84: 273 | D84: 73.73 | E84: 3 | F84: 37 | G84: 337 | H84: 52.41685714 | I84: 3 | J84: 51 | K84: 351 | L84: 61.2 | M84: 3 | N84: 24 | O84: 324 | P84: 61.2 | Q84: 3 | R84: 44 | S84: 344 | T84: 74.8 | U84: 2 | V84: 123 | W84: 2123 | X84: 82.82
A85: 2 | B85: 72 | C85: 272 | D85: 72.72 | E85: 3 | F85: 36 | G85: 336 | H85: 51.00021429 | I85: 3 | J85: 50 | K85: 350 | L85: 60 | M85: 3 | N85: 23 | O85: 323 | P85: 58.65 | Q85: 3 | R85: 43 | S85: 343 | T85: 73.1 | U85: 2 | V85: 122 | W85: 2122 | X85: 82.147
A86: 2 | B86: 71 | C86: 271 | D86: 71.71 | E86: 3 | F86: 35 | G86: 335 | H86: 49.58352468 | I86: 3 | J86: 49 | K86: 349 | L86: 58.8 | M86: 3 | N86: 22 | O86: 322 | P86: 56.1 | Q86: 3 | R86: 42 | S86: 342 | T86: 71.4 | U86: 2 | V86: 121 | W86: 2121 | X86: 81.473
A87: 2 | B87: 70 | C87: 270 | D87: 70.7 | E87: 3 | F87: 34 | G87: 334 | H87: 48.16685422 | I87: 3 | J87: 48 | K87: 348 | L87: 57.6 | M87: 3 | N87: 21 | O87: 321 | P87: 53.55 | Q87: 3 | R87: 41 | S87: 341 | T87: 69.7 | U87: 2 | V87: 120 | W87: 2120 | X87: 80.8
A88: 2 | B88: 69 | C88: 269 | D88: 69.69 | E88: 3 | F88: 33 | G88: 333 | H88: 46.75019277 | I88: 3 | J88: 47 | K88: 347 | L88: 56.4 | M88: 3 | N88: 20 | O88: 320 | P88: 51 | Q88: 3 | R88: 40 | S88: 340 | T88: 68 | U88: 2 | V88: 119 | W88: 2119 | X88: 80.12667273
A89: 2 | B89: 68 | C89: 268 | D89: 68.68 | E89: 3 | F89: 32 | G89: 332 | H89: 45.33353132 | I89: 3 | J89: 46 | K89: 346 | L89: 55.2 | M89: 3 | N89: 19 | O89: 319 | P89: 48.45 | Q89: 3 | R89: 39 | S89: 339 | T89: 66.3 | U89: 2 | V89: 118 | W89: 2118 | X89: 79.45334545
A90: 2 | B90: 67 | C90: 267 | D90: 67.67 | E90: 3 | F90: 31 | G90: 331 | H90: 43.91686987 | I90: 3 | J90: 45 | K90: 345 | L90: 54 | M90: 3 | N90: 18 | O90: 318 | P90: 45.9 | Q90: 3 | R90: 38 | S90: 338 | T90: 64.6 | U90: 2 | V90: 117 | W90: 2117 | X90: 78.78001818
A91: 2 | B91: 66 | C91: 266 | D91: 66.66 | E91: 3 | F91: 30 | G91: 330 | H91: 42.50020842 | I91: 3 | J91: 44 | K91: 344 | L91: 52.8 | M91: 3 | N91: 17 | O91: 317 | P91: 43.35 | Q91: 3 | R91: 37 | S91: 337 | T91: 62.9 | U91: 2 | V91: 116 | W91: 2116 | X91: 78.10669091
A92: 2 | B92: 65 | C92: 265 | D92: 65.65 | E92: 4 | F92: 72 | G92: 472 | H92: 104 | I92: 3 | J92: 43 | K92: 343 | L92: 51.6 | M92: 3 | N92: 16 | O92: 316 | P92: 40.8 | Q92: 3 | R92: 36 | S92: 336 | T92: 61.2 | U92: 2 | V92: 115 | W92: 2115 | X92: 77.43336364
A93: 2 | B93: 64 | C93: 264 | D93: 64.64 | E93: 4 | F93: 71 | G93: 471 | H93: 102.556 | I93: 3 | J93: 42 | K93: 342 | L93: 50.4 | M93: 3 | N93: 15 | O93: 315 | P93: 38.25 | Q93: 3 | R93: 35 | S93: 335 | T93: 59.5 | U93: 2 | V93: 114 | W93: 2114 | X93: 76.76003636
A94: 2 | B94: 63 | C94: 263 | D94: 63.63 | E94: 4 | F94: 70 | G94: 470 | H94: 101.111 | I94: 4 | J94: 85 | K94: 485 | L94: 104 | M94: 3 | N94: 14 | O94: 314 | P94: 35.7 | Q94: 3 | R94: 34 | S94: 334 | T94: 57.8 | U94: 2 | V94: 113 | W94: 2113 | X94: 76.08670909
A95: 2 | B95: 62 | C95: 262 | D95: 62.62 | E95: 4 | F95: 69 | G95: 469 | H95: 99.667 | I95: 4 | J95: 84 | K95: 484 | L95: 102.776 | M95: 3 | N95: 13 | O95: 313 | P95: 33.15 | Q95: 3 | R95: 33 | S95: 333 | T95: 56.1 | U95: 2 | V95: 112 | W95: 2112 | X95: 75.41338182
A96: 2 | B96: 61 | C96: 261 | D96: 61.61 | E96: 4 | F96: 68 | G96: 468 | H96: 98.222 | I96: 4 | J96: 83 | K96: 483 | L96: 101.553 | M96: 3 | N96: 12 | O96: 312 | P96: 30.6 | Q96: 3 | R96: 32 | S96: 332 | T96: 54.4 | U96: 2 | V96: 111 | W96: 2111 | X96: 74.74005455
A97: 2 | B97: 60 | C97: 260 | D97: 60.6 | E97: 4 | F97: 67 | G97: 467 | H97: 96.778 | I97: 4 | J97: 82 | K97: 482 | L97: 100.329 | M97: 3 | N97: 11 | O97: 311 | P97: 28.05 | Q97: 3 | R97: 31 | S97: 331 | T97: 52.7 | U97: 2 | V97: 110 | W97: 2110 | X97: 74.06672727
A98: 2 | B98: 59 | C98: 259 | D98: 59.59 | E98: 4 | F98: 66 | G98: 466 | H98: 95.333 | I98: 4 | J98: 81 | K98: 481 | L98: 99.106 | M98: 3 | N98: 10 | O98: 310 | P98: 25.5 | Q98: 3 | R98: 30 | S98: 330 | T98: 51 | U98: 2 | V98: 109 | W98: 2109 | X98: 73.3934
A99: 2 | B99: 58 | C99: 258 | D99: 58.58 | E99: 4 | F99: 65 | G99: 465 | H99: 93.889 | I99: 4 | J99: 80 | K99: 480 | L99: 97.882 | M99: 4 | N99: 40 | O99: 440 | P99: 104 | Q99: 4 | R99: 60 | S99: 460 | T99: 104 | U99: 2 | V99: 108 | W99: 2108 | X99: 72.72007273
A100: 2 | B100: 57 | C100: 257 | D100: 57.57 | E100: 4 | F100: 64 | G100: 464 | H100: 92.444 | I100: 4 | J100: 79 | K100: 479 | L100: 96.659 | M100: 4 | N100: 39 | O100: 439 | P100: 101.4 | Q100: 4 | R100: 59 | S100: 459 | T100: 102.267 | U100: 2 | V100: 107 | W100: 2107 | X100: 72.04674545
A101: 2 | B101: 56 | C101: 256 | D101: 56.56 | E101: 4 | F101: 63 | G101: 463 | H101: 91 | I101: 4 | J101: 78 | K101: 478 | L101: 95.435 | M101: 4 | N101: 38 | O101: =M101&""&N101 -> 438 | P101: 98.8 | Q101: 4 | R101: 58 | S101: 458 | T101: 100.533 | U101: 2 | V101: 106 | W101: 2106 | X101: 71.37341818
A102: 2 | B102: 55 | C102: 255 | D102: 55.55 | E102: 4 | F102: 62 | G102: 462 | H102: 89.556 | I102: 4 | J102: 77 | K102: 477 | L102: 94.212 | M102: 4 | N102: 37 | O102: 437 | P102: 96.2 | Q102: 4 | R102: 57 | S102: 457 | T102: 98.8 | U102: 2 | V102: 105 | W102: 2105 | X102: 70.70009091
A103: 2 | B103: 54 | C103: 254 | D103: 54.54 | E103: 4 | F103: 61 | G103: 461 | H103: 88.111 | I103: 4 | J103: 76 | K103: 476 | L103: 92.988 | M103: 4 | N103: 36 | O103: 436 | P103: 93.6 | Q103: 4 | R103: 56 | S103: 456 | T103: 97.067 | U103: 2 | V103: 104 | W103: 2104 | X103: 70.02676364
A104: 2 | B104: 53 | C104: 253 | D104: 53.53 | E104: 4 | F104: 60 | G104: 460 | H104: 86.667 | I104: 4 | J104: 75 | K104: 475 | L104: 91.765 | M104: 4 | N104: 35 | O104: 435 | P104: 91 | Q104: 4 | R104: 55 | S104: 455 | T104: 95.333 | U104: 2 | V104: 103 | W104: 2103 | X104: 69.35343636
A105: 2 | B105: 52 | C105: 252 | D105: 52.52 | E105: 4 | F105: 59 | G105: 459 | H105: 85.222 | I105: 4 | J105: 74 | K105: 474 | L105: 90.541 | M105: 4 | N105: 34 | O105: 434 | P105: 88.4 | Q105: 4 | R105: 54 | S105: 454 | T105: 93.6 | U105: 2 | V105: 102 | W105: 2102 | X105: 68.68010909
A106: 2 | B106: 51 | C106: 251 | D106: 51.51 | E106: 4 | F106: 58 | G106: 458 | H106: 83.778 | I106: 4 | J106: 73 | K106: 473 | L106: 89.318 | M106: 4 | N106: 33 | O106: 433 | P106: 85.8 | Q106: 4 | R106: 53 | S106: 453 | T106: 91.867 | U106: 2 | V106: 101 | W106: 2101 | X106: 68.00678182
A107: 2 | B107: 50 | C107: 250 | D107: 50.5 | E107: 4 | F107: 57 | G107: 457 | H107: 82.333 | I107: 4 | J107: 72 | K107: 472 | L107: 88.094 | M107: 4 | N107: 32 | O107: 432 | P107: 83.2 | Q107: 4 | R107: 52 | S107: 452 | T107: 90.133 | U107: 2 | V107: 100 | W107: 2100 | X107: 67.33345455
A108: 3 | B108: 100 | C108: 3100 | D108: 102 | E108: 4 | F108: 56 | G108: 456 | H108: 80.889 | I108: 4 | J108: 71 | K108: 471 | L108: 86.871 | M108: 4 | N108: 31 | O108: 431 | P108: 80.6 | Q108: 4 | R108: 51 | S108: 451 | T108: 88.4 | U108: 3 | V108: 150 | W108: 3150 | X108: 102
A109: 3 | B109: 99 | C109: 399 | D109: 100.98 | E109: 4 | F109: 55 | G109: 455 | H109: 79.444 | I109: 4 | J109: 70 | K109: 470 | L109: 85.647 | M109: 4 | N109: 30 | O109: 430 | P109: 78 | Q109: 4 | R109: 50 | S109: 450 | T109: 86.667 | U109: 3 | V109: 149 | W109: 3149 | X109: 101.32
A110: 3 | B110: 98 | C110: 398 | D110: 99.96 | E110: 4 | F110: 54 | G110: 454 | H110: 78 | I110: 4 | J110: 69 | K110: 469 | L110: 84.424 | M110: 4 | N110: 29 | O110: 429 | P110: 75.4 | Q110: 4 | R110: 49 | S110: 449 | T110: 84.933 | U110: 3 | V110: 148 | W110: 3148 | X110: 100.64
A111: 3 | B111: 97 | C111: 397 | D111: 98.94 | E111: 4 | F111: 53 | G111: 453 | H111: 76.556 | I111: 4 | J111: 68 | K111: 468 | L111: 83.2 | M111: 4 | N111: 28 | O111: 428 | P111: 72.8 | Q111: 4 | R111: 48 | S111: 448 | T111: 83.2 | U111: 3 | V111: 147 | W111: 3147 | X111: 99.96
A112: 3 | B112: 96 | C112: 396 | D112: 97.92 | E112: 4 | F112: 52 | G112: 452 | H112: 75.111 | I112: 4 | J112: 67 | K112: 467 | L112: 81.976 | M112: 4 | N112: 27 | O112: 427 | P112: 70.2 | Q112: 4 | R112: 47 | S112: 447 | T112: 81.467 | U112: 3 | V112: 146 | W112: 3146 | X112: 99.28
A113: 3 | B113: 95 | C113: 395 | D113: 96.9 | E113: 4 | F113: 51 | G113: 451 | H113: 73.667 | I113: 4 | J113: 66 | K113: 466 | L113: 80.753 | M113: 4 | N113: 26 | O113: 426 | P113: 67.6 | Q113: 4 | R113: 46 | S113: 446 | T113: 79.733 | U113: 3 | V113: 145 | W113: 3145 | X113: 98.6
A114: 3 | B114: 94 | C114: 394 | D114: 95.88 | E114: 4 | F114: 50 | G114: 450 | H114: 72.222 | I114: 4 | J114: 65 | K114: 465 | L114: 79.529 | M114: 4 | N114: 25 | O114: 425 | P114: 65 | Q114: 4 | R114: 45 | S114: 445 | T114: 78 | U114: 3 | V114: 144 | W114: 3144 | X114: 97.92
A115: 3 | B115: 93 | C115: 393 | D115: 94.86 | E115: 4 | F115: 49 | G115: 449 | H115: 70.778 | I115: 4 | J115: 64 | K115: 464 | L115: 78.306 | M115: 4 | N115: 24 | O115: 424 | P115: 62.4 | Q115: 4 | R115: 44 | S115: 444 | T115: 76.267 | U115: 3 | V115: 143 | W115: 3143 | X115: 97.24
A116: 3 | B116: 92 | C116: 392 | D116: 93.84 | E116: 4 | F116: 48 | G116: 448 | H116: 69.333 | I116: 4 | J116: 63 | K116: 463 | L116: 77.082 | M116: 4 | N116: 23 | O116: 423 | P116: 59.8 | Q116: 4 | R116: 43 | S116: 443 | T116: 74.533 | U116: 3 | V116: 142 | W116: 3142 | X116: 96.56
A117: 3 | B117: 91 | C117: 391 | D117: 92.82 | E117: 4 | F117: 47 | G117: 447 | H117: 67.889 | I117: 4 | J117: 62 | K117: 462 | L117: 75.858 | M117: 4 | N117: 22 | O117: 422 | P117: 57.2 | Q117: 4 | R117: 42 | S117: 442 | T117: 72.8 | U117: 3 | V117: 141 | W117: 3141 | X117: 95.88
A118: 3 | B118: 90 | C118: 390 | D118: 91.8 | E118: 4 | F118: 46 | G118: 446 | H118: 66.444 | I118: 4 | J118: 61 | K118: 461 | L118: 74.635 | M118: 4 | N118: 21 | O118: 421 | P118: 54.6 | Q118: 4 | R118: 41 | S118: 441 | T118: 71.067 | U118: 3 | V118: 140 | W118: 3140 | X118: 95.2
A119: 3 | B119: 89 | C119: 389 | D119: 90.78 | E119: 4 | F119: 45 | G119: 445 | H119: 65 | I119: 4 | J119: 60 | K119: 460 | L119: 73.412 | M119: 4 | N119: 20 | O119: 420 | P119: 52 | Q119: 4 | R119: 40 | S119: 440 | T119: 69.333 | U119: 3 | V119: 139 | W119: 3139 | X119: 94.52
A120: 3 | B120: 88 | C120: 388 | D120: 89.76 | E120: 4 | F120: 44 | G120: 444 | H120: 63.556 | I120: 4 | J120: 59 | K120: 459 | L120: 72.188 | M120: 4 | N120: 19 | O120: 419 | P120: 49.4 | Q120: 4 | R120: 39 | S120: 439 | T120: 67.6 | U120: 3 | V120: 138 | W120: 3138 | X120: 93.84
A121: 3 | B121: 87 | C121: 387 | D121: 88.74 | E121: 4 | F121: 43 | G121: 443 | H121: 62.111 | I121: 4 | J121: 58 | K121: 458 | L121: 70.965 | M121: 4 | N121: 18 | O121: 418 | P121: 46.8 | Q121: 4 | R121: 38 | S121: 438 | T121: 65.867 | U121: 3 | V121: 137 | W121: 3137 | X121: 93.16
A122: 3 | B122: 86 | C122: 386 | D122: 87.72 | E122: 4 | F122: 42 | G122: 442 | H122: 60.667 | I122: 4 | J122: 57 | K122: 457 | L122: 69.741 | M122: 4 | N122: 17 | O122: 417 | P122: 44.2 | Q122: 4 | R122: 37 | S122: 437 | T122: 64.133 | U122: 3 | V122: 136 | W122: 3136 | X122: 92.48
A123: 3 | B123: 85 | C123: =A123&""&B123 -> 385 | D123: 86.7 | E123: 4 | F123: 41 | G123: 441 | H123: 59.22226923 | I123: 4 | J123: 56 | K123: 456 | L123: 68.518 | M123: 4 | N123: 16 | O123: 416 | P123: 41.6 | Q123: 4 | R123: 36 | S123: 436 | T123: 62.4 | U123: 3 | V123: 135 | W123: 3135 | X123: 91.8
A124: 3 | B124: 84 | C124: 384 | D124: 85.68 | E124: 4 | F124: 40 | G124: 440 | H124: 57.77782418 | I124: 4 | J124: 55 | K124: 455 | L124: 67.294 | M124: 4 | N124: 15 | O124: 415 | P124: 39 | Q124: 4 | R124: 35 | S124: 435 | T124: 60.667 | U124: 3 | V124: 134 | W124: 3134 | X124: 91.12
A125: 3 | B125: 83 | C125: 383 | D125: 84.66 | E125: 4 | F125: 39 | G125: 439 | H125: 56.33337912 | I125: 4 | J125: 54 | K125: 454 | L125: 66.07054194 | M125: 4 | N125: 14 | O125: 414 | P125: 36.4 | Q125: 4 | R125: 34 | S125: 434 | T125: 58.933 | U125: 3 | V125: 133 | W125: 3133 | X125: 90.44
A126: 3 | B126: 82 | C126: 382 | D126: 83.64 | E126: 4 | F126: 38 | G126: 438 | H126: 54.88893407 | I126: 4 | J126: 53 | K126: 453 | L126: 64.84701331 | M126: 4 | N126: 13 | O126: 413 | P126: 33.8 | Q126: 4 | R126: 33 | S126: 433 | T126: 57.2 | U126: 3 | V126: 132 | W126: 3132 | X126: 89.76
A127: 3 | B127: 81 | C127: 381 | D127: 82.62 | E127: 4 | F127: 37 | G127: 437 | H127: 53.44448901 | I127: 4 | J127: 52 | K127: 452 | L127: 63.62348468 | M127: 4 | N127: 12 | O127: 412 | P127: 31.2 | Q127: 4 | R127: 32 | S127: 432 | T127: 55.467 | U127: 3 | V127: 131 | W127: 3131 | X127: 89.08
A128: 3 | B128: 80 | C128: 380 | D128: 81.6 | E128: 4 | F128: 36 | G128: 436 | H128: 52.00004396 | I128: 4 | J128: 51 | K128: 451 | L128: 62.39995605 | M128: 4 | N128: 11 | O128: 411 | P128: 28.6 | Q128: 4 | R128: 31 | S128: 431 | T128: 53.733 | U128: 3 | V128: 130 | W128: 3130 | X128: 88.4
A129: 3 | B129: 79 | C129: 379 | D129: 80.58 | E129: 4 | F129: 35 | G129: 435 | H129: 50.55556667 | I129: 4 | J129: 50 | K129: 450 | L129: 61.17642742 | M129: 4 | N129: 10 | O129: 410 | P129: 26 | Q129: 4 | R129: 30 | S129: 430 | T129: 52 | U129: 3 | V129: 129 | W129: 3129 | X129: 87.72
A130: 3 | B130: 78 | C130: 378 | D130: 79.56 | E130: 4 | F130: 34 | G130: 434 | H130: 49.11110716 | I130: 4 | J130: 49 | K130: 449 | L130: 59.95289879 | U130: 3 | V130: 128 | W130: 3128 | X130: 87.04
A131: 3 | B131: 77 | C131: 377 | D131: 78.54 | E131: 4 | F131: 33 | G131: 433 | H131: 47.66664765 | I131: 4 | J131: 48 | K131: 448 | L131: 58.72937016 | U131: 3 | V131: 127 | W131: 3127 | X131: 86.36
A132: 3 | B132: 76 | C132: 376 | D132: 77.52 | E132: 4 | F132: 32 | G132: 432 | H132: 46.22218815 | I132: 4 | J132: 47 | K132: 447 | L132: 57.50584153 | U132: 3 | V132: 126 | W132: 3126 | X132: 85.68
A133: 3 | B133: 75 | C133: 375 | D133: 76.5 | E133: 4 | F133: 31 | G133: 431 | H133: 44.77772864 | I133: 4 | J133: 46 | K133: 446 | L133: 56.2823129 | U133: 3 | V133: 125 | W133: 3125 | X133: 85
A134: 3 | B134: 74 | C134: 374 | D134: 75.48 | E134: 4 | F134: 30 | G134: 430 | H134: 43.33326913 | I134: 4 | J134: 45 | K134: 445 | L134: 55.05878427 | U134: 3 | V134: 124 | W134: 3124 | X134: 84.32
A135: 3 | B135: 73 | C135: 373 | D135: 74.46 | I135: 4 | J135: 44 | K135: =I135&""&J135 -> 444 | L135: 53.83525565 | U135: 3 | V135: 123 | W135: =U135&""&V135 -> 3123 | X135: 83.64
A136: 3 | B136: 72 | C136: 372 | D136: 73.44 | I136: 4 | J136: 43 | K136: 443 | L136: 52.61172702 | U136: 3 | V136: 122 | W136: 3122 | X136: 82.96
A137: 3 | B137: 71 | C137: 371 | D137: 72.42 | I137: 4 | J137: 42 | K137: 442 | L137: 51.38819839 | U137: 3 | V137: 121 | W137: 3121 | X137: 82.28
A138: 3 | B138: 70 | C138: 370 | D138: 71.4 | U138: 3 | V138: 120 | W138: 3120 | X138: 81.6
A139: 3 | B139: 69 | C139: 369 | D139: 70.38 | U139: 3 | V139: 119 | W139: 3119 | X139: 80.92
A140: 3 | B140: 68 | C140: 368 | D140: 69.36 | U140: 3 | V140: 118 | W140: 3118 | X140: 80.24
A141: 3 | B141: 67 | C141: 367 | D141: 68.34 | U141: 3 | V141: 117 | W141: 3117 | X141: 79.56
A142: 3 | B142: 66 | C142: 366 | D142: 67.32 | U142: 3 | V142: 116 | W142: 3116 | X142: 78.88
A143: 3 | B143: 65 | C143: 365 | D143: 66.3 | U143: 3 | V143: 115 | W143: 3115 | X143: 78.2
A144: 3 | B144: 64 | C144: 364 | D144: 65.28 | U144: 3 | V144: 114 | W144: 3114 | X144: 77.52
A145: 3 | B145: 63 | C145: 363 | D145: 64.26 | U145: 3 | V145: 113 | W145: 3113 | X145: 76.84
A146: 3 | B146: 62 | C146: 362 | D146: 63.24 | U146: 3 | V146: 112 | W146: 3112 | X146: 76.16
A147: 3 | B147: 61 | C147: 361 | D147: 62.22 | U147: 3 | V147: 111 | W147: 3111 | X147: 75.48
A148: 3 | B148: 60 | C148: 360 | D148: 61.2 | U148: 3 | V148: 110 | W148: 3110 | X148: 74.8
A149: 3 | B149: 59 | C149: 359 | D149: 60.18 | U149: 3 | V149: 109 | W149: 3109 | X149: 74.12
A150: 3 | B150: 58 | C150: 358 | D150: 59.16 | U150: 3 | V150: 108 | W150: 3108 | X150: 73.44
A151: 3 | B151: 57 | C151: 357 | D151: 58.14 | U151: 3 | V151: 107 | W151: 3107 | X151: 72.76
A152: 3 | B152: 56 | C152: 356 | D152: 57.12 | U152: 3 | V152: 106 | W152: 3106 | X152: 72.08
A153: 3 | B153: 55 | C153: 355 | D153: 56.1 | U153: 3 | V153: 105 | W153: 3105 | X153: 71.4
A154: 3 | B154: 54 | C154: 354 | D154: 55.08 | U154: 3 | V154: 104 | W154: 3104 | X154: 70.72
A155: 3 | B155: 53 | C155: 353 | D155: 54.06 | U155: 3 | V155: 103 | W155: 3103 | X155: 70.04
A156: 3 | B156: 52 | C156: 352 | D156: 53.04 | U156: 3 | V156: 102 | W156: 3102 | X156: 69.36
A157: 3 | B157: 51 | C157: 351 | D157: 52.02 | U157: 3 | V157: 101 | W157: 3101 | X157: 68.68
A158: 3 | B158: 50 | C158: 350 | D158: 51 | U158: 3 | V158: 100 | W158: 3100 | X158: 68
A159: 4 | B159: 100 | C159: 4100 | D159: 104 | U159: 4 | V159: 150 | W159: 4150 | X159: 104
A160: 4 | B160: 99 | C160: 499 | D160: 102.96 | U160: 4 | V160: 149 | W160: 4149 | X160: 103.307
A161: 4 | B161: 98 | C161: 498 | D161: 101.92 | U161: 4 | V161: 148 | W161: 4148 | X161: 102.613
A162: 4 | B162: 97 | C162: 497 | D162: 100.88 | U162: 4 | V162: 147 | W162: 4147 | X162: 101.92
A163: 4 | B163: 96 | C163: 496 | D163: 99.84 | U163: 4 | V163: 146 | W163: 4146 | X163: 101.227
A164: 4 | B164: 95 | C164: 495 | D164: 98.8 | U164: 4 | V164: 145 | W164: 4145 | X164: 100.533
A165: 4 | B165: 94 | C165: 494 | D165: 97.76 | U165: 4 | V165: 144 | W165: 4144 | X165: 99.84
A166: 4 | B166: 93 | C166: 493 | D166: 96.72 | U166: 4 | V166: 143 | W166: 4143 | X166: 99.147
A167: 4 | B167: 92 | C167: 492 | D167: 95.68 | U167: 4 | V167: 142 | W167: 4142 | X167: 98.453
A168: 4 | B168: 91 | C168: 491 | D168: 94.64 | U168: 4 | V168: 141 | W168: 4141 | X168: 97.76
A169: 4 | B169: 90 | C169: 490 | D169: 93.6 | U169: 4 | V169: 140 | W169: 4140 | X169: 97.067
A170: 4 | B170: 89 | C170: 489 | D170: 92.56 | U170: 4 | V170: 139 | W170: 4139 | X170: 96.373
A171: 4 | B171: 88 | C171: 488 | D171: 91.52 | U171: 4 | V171: 138 | W171: 4138 | X171: 95.68
A172: 4 | B172: 87 | C172: 487 | D172: 90.48 | U172: 4 | V172: 137 | W172: 4137 | X172: 94.987
A173: 4 | B173: 86 | C173: 486 | D173: 89.44 | U173: 4 | V173: 136 | W173: 4136 | X173: 94.293
A174: 4 | B174: 85 | C174: 485 | D174: 88.4 | U174: 4 | V174: 135 | W174: 4135 | X174: 93.6
A175: 4 | B175: 84 | C175: 484 | D175: 87.36 | U175: 4 | V175: 134 | W175: 4134 | X175: 92.907
A176: 4 | B176: 83 | C176: 483 | D176: 86.32 | U176: 4 | V176: 133 | W176: 4133 | X176: 92.213
A177: 4 | B177: 82 | C177: 482 | D177: 85.28 | U177: 4 | V177: 132 | W177: 4132 | X177: 91.52
A178: 4 | B178: 81 | C178: 481 | D178: 84.24 | U178: 4 | V178: 131 | W178: 4131 | X178: 90.827
A179: 4 | B179: 80 | C179: 480 | D179: 83.2 | U179: 4 | V179: 130 | W179: 4130 | X179: 90.133
A180: 4 | B180: 79 | C180: 479 | D180: 82.16 | U180: 4 | V180: 129 | W180: 4129 | X180: 89.44
A181: 4 | B181: 78 | C181: 478 | D181: 81.12 | U181: 4 | V181: 128 | W181: 4128 | X181: 88.747
A182: 4 | B182: 77 | C182: 477 | D182: 80.08 | U182: 4 | V182: 127 | W182: 4127 | X182: 88.053
A183: 4 | B183: 76 | C183: 476 | D183: 79.04 | U183: 4 | V183: 126 | W183: 4126 | X183: 87.36
A184: 4 | B184: 75 | C184: 475 | D184: 78 | U184: 4 | V184: 125 | W184: 4125 | X184: 86.667
A185: 4 | B185: 74 | C185: 474 | D185: 76.96 | U185: 4 | V185: 124 | W185: 4124 | X185: 85.973
A186: 4 | B186: 73 | C186: 473 | D186: 75.92 | U186: 4 | V186: 123 | W186: 4123 | X186: 85.28
A187: 4 | B187: 72 | C187: =A187&""&B187 -> 472 | D187: 74.88 | U187: 4 | V187: 122 | W187: 4122 | X187: 84.587
A188: 4 | B188: 71 | C188: 471 | D188: 73.84 | U188: 4 | V188: 121 | W188: 4121 | X188: 83.893
A189: 4 | B189: 70 | C189: 470 | D189: 72.8 | U189: 4 | V189: 120 | W189: 4120 | X189: 83.2
A190: 4 | B190: 69 | C190: 469 | D190: 71.76 | U190: 4 | V190: 119 | W190: 4119 | X190: 82.50658333
A191: 4 | B191: 68 | C191: 468 | D191: 70.72 | U191: 4 | V191: 118 | W191: 4118 | X191: 81.81323333
A192: 4 | B192: 67 | C192: 467 | D192: 69.68 | U192: 4 | V192: 117 | W192: 4117 | X192: 81.11988333
A193: 4 | B193: 66 | C193: 466 | D193: 68.64 | U193: 4 | V193: 116 | W193: 4116 | X193: 80.42653333
A194: 4 | B194: 65 | C194: 465 | D194: 67.6 | U194: 4 | V194: 115 | W194: 4115 | X194: 79.73318333
A195: 4 | B195: 64 | C195: 464 | D195: 66.56 | U195: 4 | V195: 114 | W195: 4114 | X195: 79.03983333
A196: 4 | B196: 63 | C196: 463 | D196: 65.52 | U196: 4 | V196: 113 | W196: 4113 | X196: 78.34648333
A197: 4 | B197: 62 | C197: 462 | D197: 64.48 | U197: 4 | V197: 112 | W197: 4112 | X197: 77.65313333
A198: 4 | B198: 61 | C198: 461 | D198: 63.44 | U198: 4 | V198: 111 | W198: 4111 | X198: 76.95978333
A199: 4 | B199: 60 | C199: 460 | D199: 62.4 | U199: 4 | V199: 110 | W199: =U199&""&V199 -> 4110 | X199: 76.26643333
A200: 4 | B200: 59 | C200: 459 | D200: 61.36 | U200: 4 | V200: 109 | W200: 4109 | X200: 75.57308333
A201: 4 | B201: 58 | C201: 458 | D201: 60.32 | U201: 4 | V201: 108 | W201: 4108 | X201: 74.87973333
... 8 more rows

Sheet VersTabelle (hidden)
A1: V_8 | B1: mit Waf_Art Spalten
A2: V_9 | B2: mit 2 Blätter, Eingabe und Auswertung
A3: V_10
A4: V_11
A5: V_12 | B5: neu zusammenzählen, Punkte und % sep.
A6: V_13
A7: V_14
A8: V_15 | B8: Zählen von % geht nicht mehr, da Formeln enthalten sind
A9: V_16
A10: V_17
A11: V_18 | B11: mit 18 schiessen, 2 res.
A12: V_19
A13: V_20 | B13: mit Tabellen Sverweis
A14: V_21 | B14: mit allen Tabellen Sverweis
A15: V_22 | B15: mit allen Tabellen Sverweis und Verknüpfungen, Anleitung aktualisiert
A16: V_23 | B16: ohne sichtbare Tabellen, Blatt geschützt, Spalten W_Art auf 2 bei allen Anlässen
A17: V_24 | B17: fertig, 10-18 Schiessen, 7-16 zählende Schiessen, Automatisches ausfüllen der % vom Max. bis auf ca. 50% runter
A18: V_25 | B18: Versionstabelle eingefügt,
A19: V_26 | B19: Neu: Punkte und % zusammen in Auswertung übernehmen. ""Geht nicht, da auf einer Linie!!
A20: V_27
A21: V_28
A22: V_29
A23: V_30 | B23: Braucht nur ein Blatt, Auswertung: Streichresultate von Hand löschen! Aut.Ranganzeige und sortierung unter und ende Jahr
A24: V_31
A25: V_32 | B25: Zellen gesperrt
A26: V_33
A27: V_34
A28: V_35
A29: V_36
A30: V_37
A31: V_38
A32: V_39
A33: V_40 | B33: Tabellen bis nach Eins runter erweitert, Blatt gesperrt
A34: V_41 | B34: Formeln dafür angepasst
A35: V_42
A36: V_43 | B36: mit macro aber nur 1.Anlass
A37: V_44
A38: V_45 | B38: neu ohne Makro für Resultate, nur Formeln
A39: V_46 | B39: neu ohne Makro für Resultate, nur Formeln alle 19 Anlässe
A40: V_47
A41: V_48
A42: V_49 | B42: gespeichert bis V46
A43: V_50
A44: V_51
A45: V_52
A46: V_53
A47: V_54
A48: V_55 | B48: Weiterentw. Von V26 ohne Verweis, Gelb kann geändert werden
A49: V_56
A50: V_57
A51: V_58
A52: V_59 | B52: frei
A53: V_60 | B53: Schreibgeschützt
A54: V_61
A55: V_62
A56: V_63
